Cogmind - Beta 16 @@@ ROGUE MODE // 2025.11.21 @ 21:11:17 Player: Boris Result: Defending 0bPrime! Performance ------------- Evolutions (8) 4000 Regions Visited (21) 4200 Robots Destroyed (563) 2815 Value Destroyed (34602) 34602 Prototype IDs (163) 3260 Alien Tech Used (13) 2600 Bonus (39146) 39146 TOTAL SCORE: 90623 Bonus ------- High Alert Combat Kills 14905 Follower Combat Kills 2538 Network Hubs Disabled 200 Registered with UFD 300 Met Optimus in HQ 500 Met Zhirov 300 Built Enhanced Grunts 300 A7 Reached Mainframe 300 Met R17 at Cetus 500 Found Hidden Lab 3000 Used Core Reset Matrix 3000 Met R17 at Research 2000 Scanned by Researcher 500 Met Optimus at Protoforge 1000 Executed Drillbomb Mission 10000 Win 3000 Friendly Fire -3197 Cogmind --------- Core Integrity 57/1450 Matter 287/300 Energy 850/850 System Corruption 1% Temperature Cool (0) Movement Walking (110) Location 0bPrime Parts ------- > --- POWER (3) -------- Improved Quantum Reactor Improved Quantum Reactor Improved Quantum Reactor > --- PROPULSION (6) --- Experimental Armored Exoskeleton Concept Biometal Exoskeleton > --- UTILITY (11) ----- Experimental Heat Sink High-capacity Storage Unit Experimental Active Sensor Suite Experimental Targeting Computer Experimental Targeting Computer Experimental Core Analyzer Experimental Reaction Control System Advanced Phase Shifter Experimental Cloaking Device Experimental Weapon Shielding > --- WEAPON (4) ------- Concept Plasma Driver Concept Plasma Driver Concept XC Strikerail Concept Tiamat Rocket Array > --- INVENTORY (20) --- Light Quantum Reactor Advanced Heat Sink Experimental Matter Compressor (500) Experimental Core Analyzer Makeshift Medium Armor Plating Graphene Brace Enhanced Gamma Rifle Concept Plasma Driver Concept XC Strikerail Concept Rapid Grenade Launcher Peak State ------------ > --- POWER ------------ Micro Antimatter Reactor Micro Antimatter Reactor Improved Quantum Reactor > --- PROPULSION ------- Experimental Armored Exoskeleton Concept Biometal Exoskeleton > --- UTILITY ---------- High-capacity Storage Unit Experimental Active Sensor Suite Experimental Target Analyzer Experimental Core Analyzer Advanced Transmission Jammer Experimental Reaction Control System Advanced Phase Shifter Experimental Cloaking Device Advanced Force Field Crosscalibrator > --- WEAPON ----------- Enhanced Gamma Rifle Concept XC Strikerail Sigix Broadsword > --- INVENTORY -------- Concept Biometal Exoskeleton Concept Biometal Exoskeleton Experimental Heat Sink Experimental Matter Compressor Experimental Sensor Array Experimental Kinecellerator Experimental Cloaking Device Graphene Brace Concept Antimissile System High-powered Transdimensional Reconstructor Concept Plasma Driver Concept Plasma Driver Concept Plasma Driver Concept XC Strikerail Concept XC Strikerail Concept Rapid Grenade Launcher Concept Tiamat Rocket Array [Rating: 261] Favorites ----------- Power Particle Reactor Engine Ion Engine Power Core Meta Core Reactor Particle Reactor Propulsion Overtuned Huge Scrapsphere Treads Spiked Treads Leg Biometal Leg Wheel Overtuned Huge Scrapsphere Flight Unit Cooled Nuclear Pulse Thruster Utility High-capacity Storage Unit Device Advanced Cooling System Storage High-capacity Storage Unit Processor Advanced Signal Interpreter Hackware Advanced Hacking Suite Protection Medium Regenerative Plating Weapon Wave Gun Energy Gun Wave Gun Energy Cannon Concept Plasma Driver Ballistic Gun Concept XC Strikerail Ballistic Cannon Light Antimatter Cannon Launcher Gamma Bomb Array Special Weapon Multitool Slashing Weapon Ionic Axe Special Melee Weapon Advanced Datajack Build | -11 -10 -10 -7 -5 -5 -5 -5 -4 -4 -4 -4 -4 -4 -4 -4 -3 -3 -3 -2 -2 -2 ------- Run | Yrd Mat Sub Scr Fac Upp Upp Zhi Pro Fac Was Fac Ext Cet Arc Hub Res Arm Lab Res Qua Frg Slots Evolved 16 | . . . . 10 . . . . 2 . . . . . . 2 . . 2 . . Power 2 | . . . . 1 . . . . 1 . . . . . . . . . . . . Propulsion 4 | . . . . 2 . . . . . . . . . . . . . . 2 . . Utility 9 | . . . . 6 . . . . 1 . . . . . . 2 . . . . . Weapon 1 | . . . . 1 . . . . . . . . . . . . . . . . . Parts Attached 315 | 7 5 16 6 50 2 1 4 10 1 4 23 10 7 8 8 8 22 2 16 24 81 Power 48 | 1 . 2 1 4 . . 1 1 . . 3 1 2 2 . 2 4 . 3 5 16 Engine 8 | 1 . 2 . 2 . . . . . . . . . . . . . . 1 1 1 Core 6 | . . . 1 2 . . . 1 . . 1 . 1 . . . . . . . . Reactor 34 | . . . . . . . 1 . . . 2 1 1 2 . 2 4 . 2 4 15 Propulsion 41 | 2 . 3 2 7 . . 1 . . 1 . . . . . . 5 1 4 7 8 Treads 5 | 2 . 3 . . . . . . . . . . . . . . . . . . . Leg 33 | . . . 2 5 . . . . . 1 . . . . . . 5 1 4 7 8 Wheel 2 | . . . . 2 . . . . . . . . . . . . . . . . . Hover . | . . . . . . . . . . . . . . . . . . . . . . Flight 1 | . . . . . . . 1 . . . . . . . . . . . . . . Utility 142 | 2 3 4 2 19 2 . 2 7 1 1 16 8 3 2 6 4 7 1 6 5 41 Device 77 | 1 1 4 . 13 1 . 1 5 . 1 6 5 1 2 1 2 5 . 5 4 19 Storage 4 | 1 2 . 1 . . . . . . . . . . . . . . . . . . Processor 21 | . . . . 1 . . . 1 . . 3 . . . 1 . 2 . . . 13 Hackware 16 | . . . 1 1 . . . . 1 . 4 2 . . 4 1 . . 1 1 . Protection 24 | . . . . 4 1 . 1 1 . . 3 1 2 . . 1 . 1 . . 9 Artifact . | . . . . . . . . . . . . . . . . . . . . . . Weapon 84 | 2 2 7 1 20 . 1 . 2 . 2 4 1 2 4 2 2 6 . 3 7 16 Energy Gun 37 | 1 . 3 1 11 . 1 . . . 1 3 . 2 2 1 1 3 . 1 5 1 Energy Cannon 8 | . . 1 . 1 . . . . . . . . . . . . 1 . 1 1 3 Ballistic Gun 21 | 1 2 2 . 4 . . . 1 . . . . . 1 . . 1 . . . 9 Ballistic Cannon 4 | . . 1 . 1 . . . . . 1 . . . . 1 . . . . . . Launcher 6 | . . . . 1 . . . . . . 1 . . . . . . . 1 . 3 Special Weapon 5 | . . . . 1 . . . 1 . . . 1 . . . 1 1 . . . . Impact Weapon . | . . . . . . . . . . . . . . . . . . . . . . Slashing Weapon 2 | . . . . 1 . . . . . . . . . . . . . . . 1 . Piercing Weapon . | . . . . . . . . . . . . . . . . . . . . . . Special Melee Weapon 1 | . . . . . . . . . . . . . . 1 . . . . . . . Unidentified Prototypes 34 | . . . . 3 1 1 5 . . . 2 . 5 . . . 1 2 . 1 13 Corrupted Parts 7 | . . . . . . . . . . . . . 1 1 . . . . . 3 2 System Corruption 38 | . . . . . . . . . . . . . 7 4 . . . . . 15 12 Parts Lost 60 | . . 1 . 18 . . . 1 . . 1 1 . . 1 . 3 . 5 9 20 Power 14 | . . . . 1 . . . . . . . 1 . . . . 2 . 1 2 7 Propulsion 10 | . . . . 5 . . . . . . . . . . . . 1 . 1 2 1 Utility 20 | . . 1 . 6 . . . . . . 1 . . . . . . . 2 1 9 Weapon 16 | . . . . 6 . . . 1 . . . . . . 1 . . . 1 4 3 Highest Loss Streak 7 | . . 1 . 7 . . . 1 . . 1 1 . . 1 . 2 . 1 5 4 To Critical Strikes 1 | . . . . . . . . 1 . . . . . . . . . . . . . Average Backups 16 | 2 12 12 13 15 17 17 17 18 18 18 18 19 19 19 19 18 18 17 19 18 13 Power . | . 1 1 . 1 1 1 2 1 . . . . . . . . . . . . . Propulsion . | . . 1 1 . . . . . . . . . . . . . 1 2 1 1 . Utility 8 | . 4 4 5 5 9 10 9 9 11 11 10 10 10 10 12 10 8 7 10 10 6 Weapon 4 | . 5 4 3 6 6 5 4 4 4 3 4 5 6 6 5 5 6 4 4 3 4 Tool/Special . | . . . . . . . . . . . . . . . . . . . . . . Unused Backups 96 | . 1 8 4 13 1 1 2 2 . 3 7 . . 34 . 2 3 2 1 6 6 Power 9 | . . . 1 3 . . 1 . . . . . . 4 . . . . . . . Propulsion 20 | . . . 1 1 . . . . . 1 1 . . 12 . . 1 . . 2 1 Utility 39 | . . 3 . 3 . 1 1 2 . 1 5 . . 13 . 2 1 . . 3 4 Weapon 20 | . 1 5 2 6 1 . . . . 1 1 . . . . . 1 1 1 . . Tool/Special 8 | . . . . . . . . . . . . . . 5 . . . 1 . 1 1 Average Slot Usage (%) 86 | . 99 99 93 75 82 83 65 83 82 84 84 84 83 84 85 85 86 69 94 89 81 Engine 3 | . 14 14 11 2 . . . . . . . . . . . . . . . . . Core 2 | . . . 1 6 11 10 9 10 9 9 7 4 4 . . . . . . . . Reactor 6 | . . . . . . . . . 2 4 5 8 9 14 15 13 12 5 11 11 11 Treads 5 | . 27 28 18 . . . . . . . . . . . . . . . . . . Leg 5 | . . . 8 10 . . . . . . . . . . . . 3 13 20 22 14 Wheel 4 | . . . . 1 11 10 10 10 9 8 9 9 9 10 10 9 6 . . . . Device 17 | . 14 13 13 19 21 21 21 21 19 22 18 22 22 24 15 15 17 2 14 11 17 Storage 6 | . 14 14 13 4 5 5 5 5 4 4 4 4 4 5 5 4 4 4 4 4 4 Processor 4 | . . . . 4 5 5 5 5 4 4 3 . . . 1 4 9 13 12 12 13 Hackware 5 | . . . 1 5 5 5 5 5 9 9 9 10 7 5 15 14 9 9 9 8 1 Protection 3 | . . . . 3 4 5 4 5 4 . 3 3 4 5 2 4 3 8 4 4 2 Energy Gun 10 | . . 14 3 12 16 20 2 18 19 18 15 18 14 13 18 13 13 7 12 5 . Energy Cannon 2 | . . 5 7 1 . . . . . . . . . . . . . 1 2 5 5 Ballistic Gun 4 | . 27 7 13 2 . . . 1 . . . . . . . . 1 . . . 5 Peak Build Rating 261 | 9 13 17 41 121 115 119 121 123 135 138 139 139 142 137 138 154 173 166 200 218 261 Average Rating 120 | 6 12 14 21 108 112 118 97 118 132 136 136 134 136 133 132 150 156 114 191 195 234 On Entrance 113 | . 9 13 16 41 111 111 119 118 123 135 136 139 135 134 136 138 154 161 164 186 213 Avg Prop Armor Cover (%) 7 | . . . 8 . . . . . . . . . . 7 . . . 11 2 . . Naked Turns . | . . . . . . . . . . . . . . . . . . . . . . Heaviest Build 167 | 12 50 39 53 104 90 95 92 96 115 114 142 132 134 139 139 143 147 131 144 134 167 Greatest Support 176 | 40 40 40 40 110 40 40 40 40 40 40 40 40 56 56 56 40 120 118 176 176 172 Greatest Overweight (x) 42 | . 1 . 2 4 2 2 2 2 2 5 3 3 3 42 3 3 3 1 . . 1 Average Overweight (x) 1 | . . . . . 2 2 1 2 2 2 2 2 2 5 2 3 2 . . . . Largest Inventory Capacity 20 | 8 20 15 20 20 20 20 20 20 20 20 20 20 20 20 20 20 20 20 20 20 20 Average Capacity 19 | 7 16 15 17 20 20 20 20 20 20 20 20 20 20 20 20 20 20 20 20 20 20 Most Carried 20 | 4 15 15 20 20 20 20 20 20 20 20 20 20 20 20 20 20 20 20 20 20 20 Average Carried 17 | 2 12 14 15 16 19 19 19 19 19 19 19 19 19 19 19 19 19 16 19 19 16 Final Capacity 20 | 8 15 15 20 20 20 20 20 20 20 20 20 20 20 20 20 20 20 20 20 20 20 Final Carried 20 | 4 15 15 20 20 20 20 20 20 19 20 20 20 20 20 20 20 20 20 20 20 10 Scrap Suit Usage (%) 11 | . . . . 14 25 28 5 26 . . 19 67 . 1 47 76 42 . . . . Parts Cannibalized 92 | . . . . 9 . . . 10 . . 9 20 . 2 12 18 12 . . . . Class Distribution -------------------- 24% | Scavenger-Scrapper 23% | Mutant 18% | Commander-Scrapper 8% | Scavenger-Gunner 8% | Scavenger-Skirmisher 3% | Scavenger-Mutant 3% | Scavenger-Tank Dominant Class ---------------- Mutant | -10/Materials Mutant | -10/Subcaves Mutant | -7/Scraptown Scavenger-Skirmisher | -5/Factory Scavenger-Scrapper | -5/Upper Caves Scavenger-Scrapper | -5/Upper Caves Scavenger-Scrapper | -5/Zhirov Scavenger-Scrapper | -4/Proximity Caves Scavenger-Scrapper | -4/Factory Scavenger-Scrapper | -4/Waste Scavenger-Scrapper | -4/Factory Scavenger-Scrapper | -4/Extension Commander-Tank | -4/Cetus Commander-Scrapper | -4/Archives Scavenger-Scrapper | -4/Hub_04(d) Scavenger-Scrapper | -3/Research Scavenger-Scrapper | -3/Armory Scavenger-Mutant | -3/Lab Scavenger-Skirmisher | -2/Research Scavenger-Skirmisher | -2/Quarantine Scavenger-Gunner | -2/Protoforge Resources | -11 -10 -10 -7 -5 -5 -5 -5 -4 -4 -4 -4 -4 -4 -4 -4 -3 -3 -3 -2 -2 -2 ----------- Run | Yrd Mat Sub Scr Fac Upp Upp Zhi Pro Fac Was Fac Ext Cet Arc Hub Res Arm Lab Res Qua Frg Matter Collected 16741 | 290 294 365 40 1932 188 106 32 836 60 80 1064 245 215 592 326 509 830 . 775 484 7478 Remotely . | . . . . . . . . . . . . . . . . . . . . . . Salvage Created 32726 | 104 679 583 . 2315 205 47 32 1700 184 463 2829 1722 776 483 1261 845 1966 . 2567 1874 12091 Parts 1294 | 14 34 38 . 89 3 . . 40 6 6 84 51 42 32 49 25 88 . 112 103 478 Haulers Intercepted 8 | . 2 . . 2 . . . . . . 2 . . . 1 1 . . . . . Recyclers Shooed 14 | . . . . 8 . . . 1 . . 2 . . . 1 . . . 2 . . Parts Field Recycled 38 | . . . . 38 . . . . . . . . . . . . . . . . . Retrieved Matter 498 | . . . . 498 . . . . . . . . . . . . . . . . . Parts Self-Destructed 60 | . . 13 . . 1 . . 46 . . . . . . . . . . . . . Prevented . | . . . . . . . . . . . . . . . . . . . . . . Parts Restored 1 | . . . . . . . . . . . . . . . . . . . . . 1 Faulty 1 | . . . . . . . . . . . . . . . . . . . . . 1 Kills | -11 -10 -10 -7 -5 -5 -5 -5 -4 -4 -4 -4 -4 -4 -4 -4 -3 -3 -3 -2 -2 -2 ------- Run | Yrd Mat Sub Scr Fac Upp Upp Zhi Pro Fac Was Fac Ext Cet Arc Hub Res Arm Lab Res Qua Frg Combat Hostiles Destroyed 454 | . 10 13 . 30 3 . . 15 1 . 31 23 8 2 14 8 31 . 36 20 209 Melee 7 | . . . . . . . . . . . 3 . . . . . 1 . . . 3 Guns 210 | . 10 8 . 23 2 . . 12 . . 17 14 . 2 11 7 24 . 12 1 67 Cannons 74 | . . 4 . 5 . . . . . . . . . . . . 1 . 8 13 43 AOE 96 | . . . . 1 . . . . . . 1 . 1 . . . . . 9 . 84 Classes Destroyed 33 | 1 6 3 . 3 1 1 . 5 1 . 1 . . . . 1 1 . . 1 8 Worker 15 | . 1 . . 3 . . . . . . 5 . . . 2 1 . . 3 . . Builder 14 | . 1 . . 4 . . . . 1 . . 2 . . 2 1 . . 1 2 . Tunneler 9 | 5 . . . 1 . . . . . . 2 . . . . . . . 1 . . Hauler 11 | . 2 . . 2 . . . . . . 2 . . . 1 1 . . . . 3 Recycler 10 | . 1 . . 3 . . . 2 . . 2 . . . 1 . . . 1 . . Carrier 2 | . . . . . . . . . . . . . . . . . . . . . 2 Minesweeper 1 | . . . . . . . . 1 . . . . . . . . . . . . . Mechanic 12 | . . . . . . . . . . . . . . . . . . . . 1 11 Operator 11 | . . . . . . . . . 1 . 1 . . 8 . . . . . . 1 Drone 25 | . . . . . . . . . . . . . . . . . . . . . 25 Watcher 22 | . 2 . . 3 . . . 2 2 . 2 1 1 . . . . . 4 2 3 Swarmer 58 | . . 2 . 14 . . . 2 . . 4 4 . . . 2 2 . 11 1 16 Saboteur 5 | . . . . . . . . . . . . . . . . . 2 . . . 3 Grunt 96 | . 10 2 . 7 . . . 3 1 . 14 10 . . 3 5 8 . 5 4 24 Brawler 13 | . . . . . . . . 1 . . 1 . . . 1 . . . . . 10 Duelist 21 | . . . . . . . . 1 . . 1 . . . . . 5 . . 1 13 Protector 9 | . . . . . . . . . . . . . . . . . . . . . 9 Researcher 5 | . . . . . . 1 . . . . . . . . . . . . . 2 2 Sentry 36 | . . . . 2 . . . 3 . . 4 8 . 2 5 1 1 . 3 . 7 Specialist 8 | . . . . . . . . 1 . . . . . . 1 . 6 . . . . Hunter 38 | . . . . 1 2 . . 4 . . 1 . . . 1 . 1 . 2 4 22 Programmer 59 | . . . . 6 . . . . . . 4 . . . 2 . 5 . 15 10 17 Heavy 3 | . . . . . . . . . . . 1 . . . 1 . 1 . . . . Behemoth 3 | . . . . . . . . 1 . . 1 1 . . . . . . . . . Cetus Guard 8 | . . . . . . . . . . . . . 8 . . . . . . . . Hotshot 3 | . . . . . . . . . . . . . . . . . . . . . 3 Decapitator 7 | . . . . . . . . . . . . . . . . . . . . . 7 Immortal 3 | . . . . . . . . . . . . . . . . . . . . . 3 Striker 17 | . . . . . . . . . . . . . . . . . . . . . 17 Executioner 29 | . . . . . . . . . . . . . . . . . . . . . 29 V-Series 3 | . . . . . . . . . . . . . . . . . . . . . 3 Artisan 1 | . . 1 . . . . . . . . . . . . . . . . . . . Subdweller 9 | . . 9 . . . . . . . . . . . . . . . . . . . Elite 2 | . . . . . . . . . . . . . . . . . . . . . 2 Scrapoid 4 | . . . . . . . . . . . . . . . . 2 . . . . 2 Mutant 1 | . . . . . 1 . . . . . . . . . . . . . . . . Best Kill Streak 27 | 2 2 2 . 7 2 . . 4 2 . 7 10 5 3 9 2 8 . 7 5 27 Combat Bots Only 23 | . 2 2 . 7 2 . . 4 1 . 5 10 4 2 7 2 8 . 7 4 23 Max Kills in Single Turn 11 | 1 2 1 . 2 1 1 . 1 1 . 2 2 2 1 2 1 2 . 4 1 11 Gunslinging 1 | . . . . 1 . . . . . . . 1 . . . . 1 . 1 . 1 Exploded 9 | . . . . 1 . . . . . . 1 . 1 . . . . . 4 . 9 Melee 1 | . . . . . . . . . . . 1 . . . . . 1 . . . 1 Uniques/NPCs Destroyed 1 | . . . . . . . . . . . . . 1 . . . . . . . . A7 (-4/Cetus) Combat | -11 -10 -10 -7 -5 -5 -5 -5 -4 -4 -4 -4 -4 -4 -4 -4 -3 -3 -3 -2 -2 -2 -------- Run | Yrd Mat Sub Scr Fac Upp Upp Zhi Pro Fac Was Fac Ext Cet Arc Hub Res Arm Lab Res Qua Frg Hostile Shots Fired 1845 | . 46 63 . 293 26 . . 88 2 . 105 66 23 . 65 21 191 . 232 190 434 Missed 618 | . 10 26 . 89 6 . . 26 1 . 33 27 9 . 20 3 64 . 78 71 155 Deflected 12 | . . . . . . . . . . . . . . . . . 11 . . 1 . Hits 1227 | . 36 37 . 204 20 . . 62 1 . 72 39 14 . 45 18 127 . 154 119 279 Melee 41 | . . . . . . . . . . . . . . . . . 13 . . 4 24 Projectile 1186 | . 36 37 . 204 20 . . 62 1 . 72 39 14 . 45 18 114 . 154 115 255 AOE 6 | . . . . . . . . . . . . . . . . . 1 . . . 5 Critical Strikes 73 | . 4 . . 1 . . . 3 . . . 4 4 . 4 1 8 . 11 6 27 Actively Blocked 18 | . . . . . . . . . . . . . . . . . . . . . 18 Part Disruptions 6 | . . . . 2 . . . . . . . . . . 1 . . . 3 . . Damage Taken 26785 | . 485 650 . 3603 307 . . 1020 17 . 1901 696 313 . 1074 199 1875 . 2915 2711 9019 Core 2071 | . 65 71 . 313 . . . 34 . . 146 47 77 . 89 43 116 . 63 182 825 Absorbed by Shields 4393 | . . . . . . . . . . . 45 270 94 . 198 207 895 . 683 28 1973 Redirected to Shielding 97 | . . . . . . . . . . . . . . . . . 85 . . . 12 Ignored by Resistances 218 | . . . . . . . . . . . . . . . . . . . . . 218 Regen/Repaired (Parts) 4362 | . 112 . . 88 . . . 88 . . 195 165 24 20 184 200 240 101 549 768 1628 Core Remaining (%) 63 | 100 . . 45 . . . . 65 . . . . . . 68 . . 100 . . 3 Volleys Fired 1270 | 22 45 76 . 142 18 8 . 109 18 5 83 55 12 55 44 26 72 7 107 108 258 Largest 4 | 2 2 2 . 4 3 4 . 4 4 4 4 4 1 3 4 4 4 2 4 4 4 Hottest 452 | 70 46 140 . 318 300 400 . 381 381 381 381 362 240 243 343 343 327 120 366 340 452 Shots Fired 3098 | 44 90 127 . 351 51 24 . 284 39 20 275 201 11 72 154 83 254 8 244 135 631 Gun 2517 | 44 90 87 . 313 51 24 . 258 39 20 271 200 2 47 148 79 252 1 154 65 372 Cannon 457 | . . 40 . 32 . . . . . . . . . . 6 2 1 7 84 70 215 Launcher 67 | . . . . 4 . . . . . . 4 . 9 . . . . . 6 . 44 Special 57 | . . . . 2 . . . 26 . . . 1 . 25 . 2 1 . . . . Kinetic 638 | 22 90 17 . 88 . . . 6 . . . . . 11 6 2 40 . . . 356 Thermal 2277 | 22 . 98 . 257 51 24 . 278 39 20 271 200 2 61 148 79 212 1 228 71 215 Explosive 43 | . . . . 4 . . . . . . . . . . . . . . . . 39 Electromagnetic 134 | . . 12 . . . . . . . . 4 . 9 . . . 1 7 16 64 21 Robot Hit Streak 45 | 10 14 16 . 16 3 7 . 11 11 17 18 19 6 10 22 23 12 . 13 12 45 Robot Miss Streak 13 | 2 3 4 . 13 5 1 . 8 2 . 4 3 1 5 2 3 4 . 5 5 3 Penetration Max 2 | . . . . 2 . . . . . . . . . . . . 1 . . . 2 Secondary Targets 45 | . 1 1 . 7 1 . . 3 . . 5 6 . . . 2 8 . 4 . 7 Max Gunslinging Chain 2 | . 1 1 . 1 1 . . 1 . . 1 2 . . . 1 1 . 2 . 1 Capacitor 117 | . . . . . . . . . . . . . . . . . . . . 84 33 Shots Hit Robots 1910 | 29 54 62 . 193 17 7 1 138 20 6 160 142 10 51 105 63 194 . 124 85 449 Core Hits 1309 | 7 25 20 . 86 7 2 . 58 8 4 88 57 34 18 41 23 94 . 106 35 596 Critical Kills 43 | . . 1 . 6 . . . . . . . . . . . . . . 4 . 32 Critical Parts Destroyed 50 | . . . . 14 . . . . . . . . . . . . 1 . . 1 34 Critical Strikes 222 | 2 . 1 . 30 7 1 . 20 4 . 29 24 . 1 10 5 4 . 4 2 78 Burn 113 | 2 . . . 10 7 1 . 20 4 . 27 24 . 1 9 5 3 . . . . Meltdown 10 | . . . . . . . . . . . . . . . . . . . 4 . 6 Destroy 91 | . . 1 . 20 . . . . . . . . . . . . 1 . . 1 68 Blast 1 | . . . . . . . . . . . . . . . 1 . . . . . . Corrupt 1 | . . . . . . . . . . . . . . . . . . . . 1 . Sever 6 | . . . . . . . . . . . 2 . . . . . . . . . 4 Melee Attacks 139 | . . . . . . . 1 . . . 37 . 4 7 3 6 9 18 . 9 45 Impact . | . . . . . . . . . . . . . . . . . . . . . . Slashing 137 | . . . . . . . 1 . . . 37 . 4 5 3 6 9 18 . 9 45 Piercing . | . . . . . . . . . . . . . . . . . . . . . . Sneak Attacks 28 | . . . . . . . . . . . 8 . 4 7 . 5 . . . 2 2 Combat Hostiles . | . . . . . . . . . . . . . . . . . . . . . . Follow-up Attacks . | . . . . . . . . . . . . . . . . . . . . . . Damage Inflicted 98577 | 317 827 1296 . 4391 537 162 113 3671 531 155 5713 3820 1718 1404 3013 1928 5735 . 6614 4482 52150 Guns 45870 | 315 825 965 . 3713 537 162 . 3534 531 155 4130 3820 . 679 2846 1423 5693 . 2753 1323 12466 Cannons 16181 | . . 331 . 497 . . . . . . . . . . 110 . 42 . 2230 2121 10850 Explosions 30656 | . . . . 181 . . . . . . 542 . 1434 . 57 . . . 1471 392 26579 Melee 5424 | . . . . . . . 113 . . . 1041 . 284 619 . 505 . . . 607 2255 Ramming 203 | 2 2 . . . . . . . . . . . . . . . . . 160 39 . Kinetic 14714 | 94 825 57 . 582 . . . 16 . . . . . . 110 . 981 . . . 12049 Thermal 46558 | 221 . 1039 . 3628 537 162 . 3655 531 155 4130 3820 300 785 2846 1423 4712 . 5217 2547 10850 Explosive 26285 | . . . . 181 . . . . . . . . . . . . . . . . 26104 Electromagnetic 5393 | . . 200 . . . . . . . . 542 . 1134 . 57 . 42 . 1237 1289 892 Impact . | . . . . . . . . . . . . . . . . . . . . . . Slashing 5424 | . . . . . . . 113 . . . 1041 . 284 619 . 505 . . . 607 2255 Piercing . | . . . . . . . . . . . . . . . . . . . . . . Highest Corruption 34 | . . . . 10 10 10 10 10 . . 5 6 6 4 7 . 4 4 26 34 25 Average Corruption 7 | . . . . 8 10 10 10 10 . . 2 5 3 2 2 . 3 4 9 14 5 Corruption Purged 50 | . . . . . . . . . . . . 3 7 7 . . . . 3 . 30 Corruption Blocked . | . . . . . . . . . . . . . . . . . . . . . . Effects 452 | . . . . 58 30 21 4 71 . . 34 33 8 3 5 . 13 10 43 57 62 Message Errors 100 | . . . . 19 4 4 1 15 . . 8 7 2 1 3 . 2 2 5 13 14 Matter Fused 102 | . . . . 8 7 5 1 15 . . 11 7 4 1 1 . 5 4 9 12 12 Heat Flow Errors 41 | . . . . 6 4 2 . 5 . . 2 2 . . . . . 1 4 7 8 Energy Discharges 67 | . . . . 7 2 8 1 15 . . 5 4 1 . . . . 1 8 8 7 Parts Rejected 5 | . . . . 2 . . . . . . 1 . . . . . . . . . 2 Parts Fused 1 | . . . . . . . . . . . . . . . . . . . . . 1 Data Loss (minor) 53 | . . . . 9 4 1 . 6 . . 4 4 . 1 . . 1 1 8 9 5 Data Loss (major) 18 | . . . . 1 3 . . 3 . . 1 2 . . 1 . . . 2 1 4 Misfires 18 | . . . . 2 2 1 . 3 . . 1 2 . . . . 1 . 3 2 1 Alerts 11 | . . . . 1 1 . 1 4 . . 1 . . . . . . 1 . 1 1 Misdirections 7 | . . . . . . . . . . . . . . . . . . . 1 3 3 Weapon Failures 29 | . . . . 3 3 . . 5 . . . 5 1 . . . 4 . 3 1 4 Overload Shots 5 | . . . . . . . . . . . . 1 2 . . . . . 2 . . Overflow Damage 3018 | . . . . 2 . . 85 4 . . 209 . 9 291 . 133 . . 177 497 1611 Projectiles 821 | . . . . 2 . . . 4 . . . . . . . . . . 55 163 597 Explosions 587 | . . . . . . . . . . . . . 9 . . . . . 122 27 429 Melee 1610 | . . . . . . . 85 . . . 209 . . 291 . 133 . . . 307 585 Knockbacks 1 | . . . . . . . . . . . . . . . . . . . 1 . . Impact 1 | . . . . . . . . . . . . . . . . . . . 1 . . Kinetic . | . . . . . . . . . . . . . . . . . . . . . . Secondary . | . . . . . . . . . . . . . . . . . . . . . . Self-Inflicted Damage 1125 | . . . . 139 . . . . . . 12 . 41 . 81 . . . 24 78 750 Shots 32 | . . . . 3 . . . . . . 1 . 4 . 1 . . . 2 1 20 Rammed 4 | 1 3 . . . . . . . . . . . . . . . . . . . . Targets Rammed 16 | 1 3 . . . . . . . . . . . . . . . . . 8 4 . Kicked 12 | . . . . . . . . . . . . . . . . . . . 8 4 . Crushed . | . . . . . . . . . . . . . . . . . . . . . . Highest Temperature 581 | 174 39 117 . 444 375 325 . 581 302 318 443 344 . 54 472 291 302 107 411 315 262 Average Temperature 110 | 68 11 33 . 135 156 136 . 141 148 173 137 116 . 26 122 127 110 55 90 92 73 Received Heat Transfer 2356 | . 339 132 . 246 9 . . 63 9 . 184 148 9 . 464 47 117 . 219 135 235 Effects 13 | . . . . 2 1 . . 1 . . 1 . . . 1 2 . . 4 . 1 Shutdowns 3 | . . . . 1 . . . . . . . . . . 1 . . . 1 . . Energy Bleed 6 | . . . . 1 1 . . . . . 1 . . . . 2 . . . . 1 Interference 2 | . . . . . . . . . . . . . . . . . . . 2 . . Matter Decay 1 | . . . . . . . . . . . . . . . . . . . 1 . . Short Circuit 1 | . . . . . . . . 1 . . . . . . . . . . . . . Siege Activations . | . . . . . . . . . . . . . . . . . . . . . . Martial Activations . | . . . . . . . . . . . . . . . . . . . . . . Shielding Activations 5 | . . . . . . . . . . . . . . . . . 1 . . 4 . Total Turns 62 | . . . . . . . . . . . . . . . . . 30 . . 32 . Longest Duration 30 | . . . . . . . . . . . . . . . . . 30 . . 18 . Robots Disrupted 2 | . . . . . . . . . . . . . . . . . . . 2 . . Combat Hostiles 2 | . . . . . . . . . . . . . . . . . . . 2 . . Robots Corrupted 27 | . . 1 . . . . . . . . 3 . 8 . . . . . 3 6 6 Combat Hostiles 24 | . . 1 . . . . . . . . 3 . 7 . . . . . 2 6 5 Parts Fried 63 | . . 1 . . . . . . . . 9 . 9 . . . . . 12 14 18 Impact Corruptions 1 | . . . . . . . . . . . . . . . . . . . 1 . . Robots Melted 44 | . . . . 2 1 . . 3 1 . 7 9 . . 3 1 5 . 6 . 6 Combat Hostiles 42 | . . . . 1 1 . . 3 1 . 7 9 . . 3 1 5 . 5 . 6 Parts Melted 257 | 1 . 6 . 29 10 2 . 29 5 . 40 31 . 1 18 10 26 . 25 1 23 Heat Transferred 68623 | 814 . 1294 . 7142 1650 500 . 8563 1309 261 9438 8499 200 1510 5124 2676 6992 . 5091 1828 5732 Parts Sabotaged 3 | . . . . . . . . . . . . . . . . . 3 . . . . Parts Stolen . | . . . . . . . . . . . . . . . . . . . . . . Parts Stripped . | . . . . . . . . . . . . . . . . . . . . . . Power Chain Reactions 4 | . . . . . . . . . . . . . 1 . . . . . 2 1 . Alert | -11 -10 -10 -7 -5 -5 -5 -5 -4 -4 -4 -4 -4 -4 -4 -4 -3 -3 -3 -2 -2 -2 ------- Run | Yrd Mat Sub Scr Fac Upp Upp Zhi Pro Fac Was Fac Ext Cet Arc Hub Res Arm Lab Res Qua Frg Maximum Alert Level 5 | . . . . 1 . . . . . . 2 3 2 1 4 2 3 . 3 2 5 Low Security (%) 52 | 100 100 . . 41 . . . . 100 100 58 . . 90 28 92 30 . 54 26 8 Level 1 17 | . . . . 58 . . . . . . 20 4 7 9 23 4 27 . 3 50 6 Level 2 14 | . . . . . . . . . . . 21 87 92 . 7 2 24 . 33 22 11 Level 3 4 | . . . . . . . . . . . . 8 . . 40 . 17 . 8 . 8 Level 4 1 | . . . . . . . . . . . . . . . . . . . . . 11 Level 5 9 | . . . . . . . . . . . . . . . . . . . . . 53 High Security . | . . . . . . . . . . . . . . . . . . . . . . Max Security . | . . . . . . . . . . . . . . . . . . . . . . Peak Influence 6099 | 5 95 . . 379 . . . . 42 8 692 832 665 398 1100 530 871 . 724 493 6099 Initial 528 | . 3 . . . . . . . 42 . . 338 364 226 . 528 12 . . 406 216 Average 559 | 1 32 . . 177 . . . . 8 . 213 537 560 37 449 66 390 . 291 295 2357 Influence Increases 18500 | 25 319 90 . 1250 50 . 5 602 60 10 1956 1080 381 288 1631 294 1483 . 1207 930 6839 Destroy 0b10 Robot/C 9500 | . 200 80 . 660 40 . . 460 20 . 860 580 160 80 420 160 900 . 720 440 3720 Destroy 0b10 Robot/NC 740 | 25 35 . . 80 . . 5 40 20 . 85 20 10 45 60 15 10 . 50 25 215 Destroy Leader 1592 | . 58 10 . 150 10 . . 40 4 . 212 44 . . 150 22 124 . 148 54 566 Allied During Kill 1671 | . . . . 33 . . . 62 . . 178 328 170 123 580 . 197 . . . . Successful Hack 464 | . 8 . . 48 . . . . . . 23 38 . . 34 72 67 . 42 90 42 Disable Machine 1380 | . 15 . . 30 . . . . . . 285 15 15 30 195 15 90 . 15 135 540 Anti-Garrison Action 150 | . . . . . . . . . . . . . . . . . . . . . 150 Destroy Structure 2583 | . 3 . . 174 . . . . 16 10 268 40 26 10 192 10 50 . 187 81 1516 Partial Spotted 45 | . . . . . . . . . . . 30 . . . . . . . 15 . . Lose Combat Pursuer 375 | . . . . 75 . . . . . . 15 15 . . . . 45 . 30 105 90 Influence Decreases 12407 | 20 324 90 . 873 427 . 5 535 127 10 1264 1122 466 853 625 1275 667 841 484 1267 1132 Entered New Map 2966 | . 2 . . . 141 . . . 25 . . 354 286 339 . 478 13 841 . 317 170 Time Decay 6257 | 20 322 90 . 593 286 . 5 358 102 10 562 458 160 494 314 293 444 . 434 550 762 Lost Part 590 | . . . . 180 . . . 10 . . 10 10 . . 10 . 30 . 50 90 200 Lost Ally 968 | . . . . 100 . . . 167 . . 170 . 20 20 301 . 180 . . 10 . Purge Threat 1626 | . . . . . . . . . . . 522 300 . . . 504 . . . 300 . Squads Dispatched 81 | . 1 . . 10 . . . 3 7 . 20 1 . . 3 6 6 . 11 5 8 Investigation 26 | . 1 . . 4 . . . 2 4 . 6 . . . . 4 1 . 2 . 2 Extermination 24 | . . . . 4 . . . . 1 . 5 . . . 2 . 3 . 4 4 1 Reinforcement 24 | . . . . 2 . . . 1 2 . 6 1 . . 1 2 2 . 2 . 5 Assault 1 | . . . . . . . . . . . . . . . . . . . . 1 . Garrison 6 | . . . . . . . . . . . 3 . . . . . . . 3 . . Intercept . | . . . . . . . . . . . . . . . . . . . . . . Searches Triggered . | . . . . . . . . . . . . . . . . . . . . . . Construction Impeded 5 | . . . . 1 . . . 1 . . 2 1 . . . . . . . . . Haulers Reinforced 2 | . . . . . . . . . . . 1 . . . . . . . 1 . . Active Scanning Responses . | . . . . . . . . . . . . . . . . . . . . . . Cargo Convoy Interrupts 1 | . . . . . . . . . . . . . . . . . . . 1 . . Stealth | -11 -10 -10 -7 -5 -5 -5 -5 -4 -4 -4 -4 -4 -4 -4 -4 -3 -3 -3 -2 -2 -2 --------- Run | Yrd Mat Sub Scr Fac Upp Upp Zhi Pro Fac Was Fac Ext Cet Arc Hub Res Arm Lab Res Qua Frg Distress Signals 31 | . . . . 2 . . . . 1 . . 1 2 . 3 3 6 . 3 1 9 Communications Jammed 141 | . . . . 1 . . . 22 . . 7 2 . . 52 1 1 . 32 5 18 Distress Signals 133 | . . . . 1 . . . 22 . . 5 2 . . 46 1 1 . 32 5 18 Times Spotted 639 | . 15 14 . 47 3 . . 22 4 . 45 32 9 41 30 17 54 . 71 40 195 Peak Tracking Total 14 | . 3 3 . 7 2 . . 4 2 . 4 8 5 2 5 4 8 . 10 5 14 Tactical Retreats 27 | . . . . 4 . . . . . . 1 1 . . . . 2 . 6 7 6 ECM-based Alert Blocks 17 | . . . . . . . . . . . . . . . . . . . 11 6 . Traps | -11 -10 -10 -7 -5 -5 -5 -5 -4 -4 -4 -4 -4 -4 -4 -4 -3 -3 -3 -2 -2 -2 ------- Run | Yrd Mat Sub Scr Fac Upp Upp Zhi Pro Fac Was Fac Ext Cet Arc Hub Res Arm Lab Res Qua Frg Traps Triggered 26 | . 2 . . 1 . . . 1 2 . 2 2 . . 2 . 2 . 5 3 4 Indirectly 4 | . . . . . . . . . . . . . . . 2 . . . 2 . . Trap Hack Attempts . | . . . . . . . . . . . . . . . . . . . . . . Triggered . | . . . . . . . . . . . . . . . . . . . . . . Disarmed . | . . . . . . . . . . . . . . . . . . . . . . Reprogrammed . | . . . . . . . . . . . . . . . . . . . . . . Reused . | . . . . . . . . . . . . . . . . . . . . . . Traps Extracted . | . . . . . . . . . . . . . . . . . . . . . . Installed . | . . . . . . . . . . . . . . . . . . . . . . Triggered . | . . . . . . . . . . . . . . . . . . . . . . Objects Rigged 1 | . . . . . . . . . . . . . . . 1 . . . . . . Machines | -11 -10 -10 -7 -5 -5 -5 -5 -4 -4 -4 -4 -4 -4 -4 -4 -3 -3 -3 -2 -2 -2 ---------- Run | Yrd Mat Sub Scr Fac Upp Upp Zhi Pro Fac Was Fac Ext Cet Arc Hub Res Arm Lab Res Qua Frg Machines Disabled 110 | . 1 2 . 2 1 . . 4 . . 19 1 1 2 13 1 6 4 2 9 42 Max in Single Turn 8 | . 1 1 . 1 1 . . 1 . . 1 1 1 . 8 1 1 1 1 1 4 Garrison Access 5 | . . . . . . . . . . . 2 . . . . 1 . . . 1 1 Network Hub 1 | . . . . . . . . . . . . . . . 1 . . . . . . Energy Cycler 1 | . . . . . . . . . . . . . . . . . 1 . . . . Machines Repaired 3 | . . . . . . . . . . . 2 . . . 1 . . . . . . Machines Dismantled . | . . . . . . . . . . . . . . . . . . . . . . Machines Sabotaged . | . . . . . . . . . . . . . . . . . . . . . . Overloaded Fab Kills . | . . . . . . . . . . . . . . . . . . . . . . Hacking | -11 -10 -10 -7 -5 -5 -5 -5 -4 -4 -4 -4 -4 -4 -4 -4 -3 -3 -3 -2 -2 -2 --------- Run | Yrd Mat Sub Scr Fac Upp Upp Zhi Pro Fac Was Fac Ext Cet Arc Hub Res Arm Lab Res Qua Frg Machines Accessed 103 | . 6 1 1 7 . 2 4 3 6 . 18 11 1 . 8 11 4 . 5 9 6 Terminals 52 | . 5 . . . . . . 1 . . 6 11 1 . 8 5 3 . 3 6 3 Fabricators 7 | . . . . 2 . . . 1 . . 2 . . . . 1 . . 1 . . Repair Stations 8 | . 1 . . 1 . . . . 1 . 3 . . . . 1 . . . 1 . Recycling Units 17 | . . . . 3 . . . 1 4 . 4 . . . . 3 1 . . . 1 Scanalyzers 6 | . . . . 1 . . . . 1 . 1 . . . . . . . 1 1 1 Garrison Access 5 | . . . . . . . . . . . 2 . . . . 1 . . . 1 1 Total Hacks 333 | . 12 1 15 11 . 7 17 6 9 . 57 29 1 . 25 45 17 . 22 45 14 Successful 185 | . 5 1 15 6 . 7 17 2 5 . 32 13 . . 19 27 8 . 4 18 6 Failed 147 | . 7 . . 5 . . . 4 4 . 25 16 1 . 6 18 9 . 17 27 8 Catastrophic 28 | . . . . 1 . . . . . . 2 5 1 . . 1 3 . 6 5 4 Database Lockouts 1 | . . . . . . . . . . . . . . . . . . . 1 . . Manual 142 | . 6 . . 7 . . . 1 5 . 20 12 1 . 21 28 9 . 3 20 9 Terminals 198 | . 10 . . . . . . 3 . . 31 29 1 . 25 31 15 . 16 28 9 Fabricators 13 | . . . . 2 . . . 2 . . 4 . . . . 4 . . 1 . . Repair Stations 25 | . 2 . . 1 . . . . 1 . 10 . . . . 3 . . . 8 . Recycling Units 26 | . . . . 5 . . . 1 5 . 7 . . . . 5 2 . . . 1 Scanalyzers 24 | . . . . 3 . . . . 3 . 2 . . . . . . . 5 8 3 Garrison Access 7 | . . . . . . . . . . . 3 . . . . 2 . . . 1 1 Terminal Hacks 106 | . 2 1 15 . . 7 17 1 . . 14 10 . . 9 13 6 . 2 8 1 Record 26 | . . . 15 . . 6 5 . . . . . . . . . . . . . . Part Schematic 4 | . . . . . . . 4 . . . . . . . . . . . . . . Robot Analysis 7 | . 1 . . . . . 4 . . . . 1 . . . . 1 . . . . Prototype ID Bank 4 | . . . . . . . 4 . . . . . . . . . . . . . . Open Door 6 | . . . . . . 1 . 1 . . . 4 . . . . . . . . . Level Access Points 1 | . . . . . . . . . . . . . . . 1 . . . . . . Branch Access Points 4 | . . . . . . . . . . . 1 1 . . . 1 . . 1 . . Machine Index 2 | . . . . . . . . . . . . . . . 1 1 . . . . . Terminal Index 4 | . . . . . . . . . . . 1 . . . 1 . 1 . . 1 . Recycling Unit Index 2 | . . . . . . . . . . . . . . . 1 . . . . 1 . Alert Level 7 | . . . . . . . . . . . 2 1 . . 1 2 . . . 1 . Unreport Threat 13 | . . . . . . . . . . . 4 2 . . . 5 . . . 2 . Locate Traps 3 | . . . . . . . . . . . 1 1 . . . . . . . . 1 Maintenance Status 2 | . . . . . . . . . . . 1 . . . . 1 . . . . . Security Status 1 | . . . . . . . . . . . . . . . 1 . . . . . . Recall Investigation 1 | . . . . . . . . . . . . . . . . 1 . . . . . Recall Extermination 3 | . . . . . . . . . . . 1 . . . . . 2 . . . . Hauler Manifests 2 | . 1 . . . . . . . . . . . . . . . . . . 1 . Zone Layout 13 | . . . . . . . . . . . 3 . . . 3 2 2 . 1 2 . Proto ID Catalog 1 | . . 1 . . . . . . . . . . . . . . . . . . . Fabricator Hacks 3 | . . . . . . . . . . . 1 . . . . 1 . . 1 . . Network Status 1 | . . . . . . . . . . . . . . . . . . . 1 . . Load Schematic 1 | . . . . . . . . . . . 1 . . . . . . . . . . Build 1 | . . . . . . . . . . . . . . . . 1 . . . . . Repair Station Hacks 12 | . 2 . . . . . . . . . 5 . . . . 2 . . . 3 . Scan Component 7 | . 1 . . . . . . . . . 3 . . . . 1 . . . 2 . Repair 5 | . 1 . . . . . . . . . 2 . . . . 1 . . . 1 . Recycling Unit Hacks 3 | . . . . . . . . . . . 2 . . . . . 1 . . . . Retrieve Components 3 | . . . . . . . . . . . 2 . . . . . 1 . . . . Scanalyzer 13 | . . . . 2 . . . . 1 . 2 . . . . . . . 1 4 3 Insert Component 1 | . . . . . . . . . . . 1 . . . . . . . . . . Analyze 1 | . . . . . . . . . . . 1 . . . . . . . . . . Retrieve Study 11 | . . . . 2 . . . . 1 . . . . . . . . . 1 4 3 Garrison Access Hacks 4 | . . . . . . . . . . . 2 . . . . 1 . . . 1 . Seal Access 4 | . . . . . . . . . . . 2 . . . . 1 . . . 1 . Unauthorized Hacks 44 | . 1 . . 4 . . . 1 4 . 6 3 . . 10 10 1 . . 2 2 Terminals 25 | . 1 . . . . . . . . . 1 3 . . 10 7 . . . 2 1 Track 2 | . . . . . . . . . . . . . . . 1 1 . . . . . Assimilate 5 | . . . . . . . . . . . 1 1 . . 1 1 . . . 1 . Botnet 6 | . . . . . . . . . . . . 1 . . 1 2 . . . 1 1 Detonate 1 | . . . . . . . . . . . . . . . 1 . . . . . . Operators 4 | . . . . . . . . . . . . 1 . . 1 2 . . . . . Skim 7 | . 1 . . . . . . . . . . . . . 5 1 . . . . . Fabricators 2 | . . . . 1 . . . . . . 1 . . . . . . . . . . Haulers 1 | . . . . 1 . . . . . . . . . . . . . . . . . Recompile 1 | . . . . . . . . . . . 1 . . . . . . . . . . Repair Stations . | . . . . . . . . . . . . . . . . . . . . . . Recycling Units 17 | . . . . 3 . . . 1 4 . 4 . . . . 3 1 . . . 1 Fedlink 14 | . . . . 3 . . . 1 4 . 2 . . . . 2 1 . . . 1 Scrapoids 3 | . . . . . . . . . . . 2 . . . . 1 . . . . . Scanalyzers . | . . . . . . . . . . . . . . . . . . . . . . Garrison Access . | . . . . . . . . . . . . . . . . . . . . . . Data Cores Recovered 1 | . . . . . . . . . . . . . . . . 1 . . . . . Used . | . . . . . . . . . . . . . . . . . . . . . . Hacking Detections 67 | . 6 . . 4 . . . 1 3 . 13 6 2 . 6 9 3 . 4 6 4 Full Trace Events 3 | . . . . . . . . . . . 1 . . . . . . . 1 . 1 Feedback Events . | . . . . . . . . . . . . . . . . . . . . . . Feedback Blocked 1 | . . . . . . . . . . . 1 . . . . . . . . . . Robot Schematics Acquired 2 | . . . . . . . . . . . . . . . . . . . . 1 1 Robots Built . | . . . . . . . . . . . . . . . . . . . . . . Authchips . | . . . . . . . . . . . . . . . . . . . . . . Time . | . . . . . . . . . . . . . . . . . . . . . . Total Robot Build Rating . | . . . . . . . . . . . . . . . . . . . . . . Part Schematics Acquired 14 | . . . . . . . 4 . . . 1 . . . . . . . . 7 2 Parts Built 1 | . . . . . . . . . . . . . . . . 1 . . . . . Authchips . | . . . . . . . . . . . . . . . . . . . . . . Time 46 | . . . . . . . . . . . . . . . . 46 . . . . . Total Part Build Rating 9 | . . . . . . . . . . . . . . . . 9 . . . . . Part Studies Acquired 11 | . . . . 2 . . . . 1 . . . . . . . . . 1 4 3 Parts Repaired 5 | . 1 . . . . . . . . . 2 . . . . 1 . . . 1 . Time 264 | . 26 . . . . . . . . . 151 . . . . 36 . . . 51 . Parts Recycled . | . . . . . . . . . . . . . . . . . . . . . . Recycled Matter . | . . . . . . . . . . . . . . . . . . . . . . Retrieved Matter . | . . . . . . . . . . . . . . . . . . . . . . Retrieved Components 12 | . . . . . . . . . . . 9 . . . . . 3 . . . . Parts Scanalyzed 1 | . . . . . . . . . . . 1 . . . . . . . . . . Part Schematics Acquired 1 | . . . . . . . . . . . 1 . . . . . . . . . . Parts Damaged . | . . . . . . . . . . . . . . . . . . . . . . Bothacking | -11 -10 -10 -7 -5 -5 -5 -5 -4 -4 -4 -4 -4 -4 -4 -4 -3 -3 -3 -2 -2 -2 ------------ Run | Yrd Mat Sub Scr Fac Upp Upp Zhi Pro Fac Was Fac Ext Cet Arc Hub Res Arm Lab Res Qua Frg Used RIF Installer . | . . . . . . . . . . . . . . . . . . . . . . Robots Hacked 2 | . . . . . . . . . . . . . . 2 . . . . . . . Non-combat 2 | . . . . . . . . . . . . . . 2 . . . . . . . Combat . | . . . . . . . . . . . . . . . . . . . . . . Robot Hacks Applied 2 | . . . . . . . . . . . . . . 2 . . . . . . . parse_system 1 | . . . . . . . . . . . . . . 1 . . . . . . . check_alert 1 | . . . . . . . . . . . . . . 1 . . . . . . . Relay Couplers Released 4 | . . . . . . . . . . . . . . . 3 . . . 1 . . Programmers 4 | . . . . . . . . . . . . . . . 3 . . . 1 . . Fabnet Peak Effective % . | . . . . . . . . . . . . . . . . . . . . . . Robots Rewired 36 | . . . . . . . . 11 . . . 18 . . . . 7 . . . . Allies Hacked 2 | . . . . 1 . . . . . . . . . . 1 . . . . . . Hacks Repelled 1 | . . . . . . . . . . . 1 . . . . . . . . . . Allies | -11 -10 -10 -7 -5 -5 -5 -5 -4 -4 -4 -4 -4 -4 -4 -4 -3 -3 -3 -2 -2 -2 -------- Run | Yrd Mat Sub Scr Fac Upp Upp Zhi Pro Fac Was Fac Ext Cet Arc Hub Res Arm Lab Res Qua Frg Total Allies 71 | . . . . 5 . . . 11 . . 11 25 5 . 1 5 7 . . 1 . Largest Group 29 | . . . . 5 . . . 5 . . 5 25 29 21 21 5 4 . . 1 . Highest-Rated Group 1595 | . . . . 235 . . . 188 . . 235 1168 1595 996 960 323 272 . . 26 . Highest-Rated Ally 159 | . . . . 47 . . . 68 . . 53 159 159 96 96 67 68 . . 26 . Total Orders 66 | . . . . . . . . . . . 4 . . 60 1 . 1 . . . . STAY 38 | . . . . . . . . . . . . . . 37 1 . . . . . . ROAM 1 | . . . . . . . . . . . . . . . . . 1 . . . . FOLLOW 23 | . . . . . . . . . . . . . . 23 . . . . . . . EXPLORE 4 | . . . . . . . . . . . 4 . . . . . . . . . . Ally Attacks 481 | . . . . 39 . . . 55 . . 113 34 12 21 121 2 84 . . . . Total Damage 15774 | . . . . 760 . . . 1643 . . 3745 1031 341 673 3843 29 3709 . . . . Kills 73 | . . . . 3 . . . 9 . . 18 7 1 3 16 . 16 . . . . Allies Corrupted 3 | . . . . . . . . . . . 1 . . . 2 . . . . . . Allies Melted 4 | . . . . . . . . . . . . . . . . . . . . . 4 Intel | -11 -10 -10 -7 -5 -5 -5 -5 -4 -4 -4 -4 -4 -4 -4 -4 -3 -3 -3 -2 -2 -2 ------- Run | Yrd Mat Sub Scr Fac Upp Upp Zhi Pro Fac Was Fac Ext Cet Arc Hub Res Arm Lab Res Qua Frg Active Infowar (turns) 26501 | 90 1172 3137 3824 1874 704 582 161 1607 344 268 2017 379 . . 469 790 1131 639 1488 1592 4233 Optics 7152 | . . 42 . . . . . . . . . . . . . . 1032 639 1471 1592 2376 Sensors 10114 | . . . . 1678 704 582 161 1384 344 268 1707 6 . . . 238 146 . 1148 1062 686 A.S.S. 2496 | . . . . . . . . . . . . . . . . . . . . . 2496 Terrain 1319 | 90 1159 70 . . . . . . . . . . . . . . . . . . . Seismic 6978 | . 13 3025 3824 116 . . . . . . . . . . . . . . . . . Decoding 192 | . . . . . . . . . . . 192 . . . . . . . . . . Cloaking 2514 | . . . . . . . . . . . . . . . . . . . . . 2514 Jamming 7632 | . . . . 1036 . . . 223 156 . 741 373 . . 469 552 752 65 1248 1366 651 ECM 232 | . . . . . . . . . . . . . . . . . . . 141 91 . Robot Analysis Total 7 | . 1 . . . . . 4 . . . . 1 . . . . 1 . . . . Derelict Logs Recovered 7 | . . 1 4 . 1 1 . . . . . . . . . . . . . . . Drone Launches 4 | . . . . . . . . . . . 4 . . . . . . . . . . Drone Recoveries . | . . . . . . . . . . . . . . . . . . . . . . Decoded 0b10 Intel 4 | . . . . . . . . . . . 4 . . . . . . . . . . Traps 4 | . . . . . . . . . . . 4 . . . . . . . . . . Exploration | -11 -10 -10 -7 -5 -5 -5 -5 -4 -4 -4 -4 -4 -4 -4 -4 -3 -3 -3 -2 -2 -2 ------------- Run | Yrd Mat Sub Scr Fac Upp Upp Zhi Pro Fac Was Fac Ext Cet Arc Hub Res Arm Lab Res Qua Frg Turns Passed 35621 | 238 1172 3313 3824 2371 741 587 163 1874 380 378 2309 1150 331 6025 740 942 1131 639 1488 1592 4233 Spaces Moved 20010 | 99 435 1868 1996 1085 710 608 168 1138 308 384 1584 773 202 1895 545 736 632 320 864 1045 2615 Core 183 | 3 . . . . . . . . . . . . . 180 . . . . . . . Treads 3858 | 96 435 1868 1459 . . . . . . . . . . . . . . . . . . Legs 6466 | . . . 537 932 . . . . . . . . . . . . 153 320 864 1045 2615 Wheels 9503 | . . . . 153 710 608 168 1138 308 384 1584 773 202 1715 545 736 479 . . . . Hover . | . . . . . . . . . . . . . . . . . . . . . . Flight . | . . . . . . . . . . . . . . . . . . . . . . Fastest Speed 50 | 50 160 160 160 90 90 90 80 90 90 90 90 90 90 90 90 100 90 106 110 97 90 Average Speed 136 | 156 197 160 189 142 90 90 80 90 90 90 90 90 93 284 93 100 112 132 112 109 105 Slowest Speed 2150 | 160 240 160 260 190 90 90 90 90 90 120 100 100 100 2150 100 100 200 185 116 122 220 Overloaded Moves . | . . . . . . . . . . . . . . . . . . . . . . Propulsion Burnouts . | . . . . . . . . . . . . . . . . . . . . . . Robots Hopped . | . . . . . . . . . . . . . . . . . . . . . . Potential Cave-ins 19 | . . . . . . . . . . . . . . . . . . . . . 19 Cave-ins Triggered 4 | . . . . . . . . . . . . . . . . . . . . . 4 Teleports 4 | . . . . . . . . . . . . . . . . . 1 . 1 . 2 Exploration Rate (%) 61 | 7 71 96 88 23 70 85 62 64 8 97 50 87 66 97 42 20 38 94 26 81 73 Regions Visited 21 Branch Regions 14 Pre-discovered Areas 6 | . . 1 . 1 1 . 3 . . . . . . . . . . . . . . Known Exits Taken 13 | . . . . 1 1 1 1 1 . . 1 1 . . 1 1 1 1 1 1 . Unknown Exits Taken 6 | 1 1 1 1 . . . . . . . . . 1 1 . . . . . . . Scrap Searched 19 | . . 9 5 . 2 2 . 1 . . . . . . . . . . . . . Spaces Dug 200 | . . 5 . 37 6 8 . 20 4 . 43 . . 1 4 3 5 . 23 7 34 Terrain Destroyed 1410 | . . 5 . 92 17 12 . 35 9 6 70 20 14 4 170 4 33 . 66 34 819 Melee 41 | . . . . . . . . . . . 19 . . . 3 1 5 . . 2 11 Projectile 498 | . . 5 . 22 17 12 . 35 9 6 51 20 . 4 4 3 28 . 52 20 210 AOE 870 | . . . . 69 . . . . . . . . 14 . 163 . . . 14 12 598 Terrain Rammed . | . . . . . . . . . . . . . . . . . . . . . . Walls Destroyed . | . . . . . . . . . . . . . . . . . . . . . . Machines Disabled . | . . . . . . . . . . . . . . . . . . . . . . Actions | -11 -10 -10 -7 -5 -5 -5 -5 -4 -4 -4 -4 -4 -4 -4 -4 -3 -3 -3 -2 -2 -2 --------- Run | Yrd Mat Sub Scr Fac Upp Upp Zhi Pro Fac Was Fac Ext Cet Arc Hub Res Arm Lab Res Qua Frg Total 26251 | 139 654 2066 2033 1650 798 641 196 1891 394 411 2292 1156 326 2492 696 899 904 509 1170 1428 3506 Wait 2851 | 6 146 60 1 244 47 18 . 481 53 4 439 195 84 363 66 96 55 93 100 131 169 Move 19987 | 98 434 1867 1995 1084 709 607 167 1137 308 383 1583 772 201 1894 544 735 631 319 863 1044 2612 Hop . | . . . . . . . . . . . . . . . . . . . . . . Pick Up 373 | 5 13 14 18 47 5 2 3 12 1 4 21 6 5 73 5 9 18 20 16 24 52 Fast Attach 171 | 6 4 3 . 13 3 2 7 2 . 4 15 6 4 4 . 2 6 10 3 15 62 Attach 148 | 1 . 3 5 28 1 1 2 5 2 . 4 2 2 5 2 5 12 7 7 14 40 Detach 87 | . . 1 . 7 . . 1 3 . . 7 3 1 5 1 2 5 4 . 11 36 Swap 450 | . 4 21 2 55 7 1 2 29 4 4 73 15 6 9 21 8 22 3 51 35 78 Drop 410 | . 5 21 12 30 8 2 13 13 . 7 27 8 7 77 3 8 16 28 14 31 80 Fire 1270 | 22 45 76 . 142 18 8 . 109 18 5 83 55 12 55 44 26 72 7 107 108 258 Melee 139 | . . . . . . . 1 . . . 37 . 4 7 3 6 9 18 . 9 45 Ram . | . . . . . . . . . . . . . . . . . . . . . . Kick 12 | . . . . . . . . . . . . . . . . . . . 8 4 . Crush 4 | 1 3 . . . . . . . . . . . . . . . . . . . . Escape Stasis 20 | . . . . . . . . . 8 . . 8 . . . . . . . . 4 Rewire 242 | . . . . . . . . 100 . . . 85 . . . . 57 . . . . Trap . | . . . . . . . . . . . . . . . . . . . . . . Miscellaneous 87 | . . . . . . . . . . . 3 1 . . 7 2 1 . 1 2 70 Route ------- -11/Scrapyard -10/Materials (discovered 4 exits: [*Mat x2] / [*Min] / *Sub) -10/Subcaves (discovered 4 exits: [*Mat x2] / Rec / *Scr) -7/Scraptown (discovered 2 exits: *Fac x2) -5/Factory (discovered 2 exits: *Fac / *Upp) -5/Upper Caves -5/Upper Caves (discovered 2 exits: *Fac / *Zhi) -5/Zhirov -4/Proximity Caves -4/Factory (discovered 2 exits: Res / Ext) -4/Waste -4/Factory (discovered 5 exits: *Res / *Upp x2 / *Ext x2) -4/Extension (discovered 2 exits: *Res / *Cet) -4/Cetus (discovered 2 exits: *Res / *Arc) -4/Archives (discovered 3 exits: *Res / *Hub x2) -4/Hub_04(d) (discovered 4 exits: *Res x4) -3/Research (discovered 4 exits: Res / *Arm / *Tes x2) -3/Armory (discovered 2 exits: *Res / *Lab) -3/Lab -2/Research (discovered 3 exits: *Acc / *Qua x2) -2/Quarantine (discovered 3 exits: *Acc / *Sec / *Frg) -2/Protoforge 0bPrime History --------- Turn | Location | Event 15 | -11/Scrapyard | Discovered new exit (range 15) 239 | -11/Scrapyard | Entered Materials 308 | -10/Materials | Build established: Mutant 376 | -10/Materials | Discovered new exit (range 11) 402 | -10/Materials | Discovered new exit (range 16) 980 | -10/Materials | Discovered new exit (range 11) 1146 | -10/Materials | Repaired Lgt. Treads 1364 | -10/Materials | Discovered new exit (range 8) 1411 | -10/Materials | Entered Subcaves 1412 | -10/Subcaves | Approached by a straggling Scientist 1437 | -10/Subcaves | Scientist uncovered a shortcut to Scraptown 1809 | -10/Subcaves | Visited 4L-MR0's lab 1829 | -10/Subcaves | Found Arachnoskeleton 2498 | -10/Subcaves | Discovered new exit (range 16) 2569 | -10/Subcaves | Learned location of Zion (-7) 2569 | -10/Subcaves | Met a Zionite searching for "candidates" 2576 | -10/Subcaves | Identified exit to Recycling 2991 | -10/Subcaves | Shifting Twisted Machinery released Flamer 3004 | -10/Subcaves | Shifting Twisted Machinery released Battle Rifle 3098 | -10/Subcaves | Disturbed a concealed Subdweller 3381 | -10/Subcaves | Disturbed a concealed Subdweller 3512 | -10/Subcaves | Discovered new exit (range 16) 3848 | -10/Subcaves | A Subdweller sparked back to life 3848 | -10/Subcaves | A Subdweller sparked back to life 3877 | -10/Subcaves | Core integrity fell below 50% 3883 | -10/Subcaves | Found Meta Core 4527 | -10/Subcaves | A swath of the cavern ceiling suddenly collapsed 4724 | -10/Subcaves | Entered Scraptown 4904 | -7/Scraptown | Heard Great Nut preacher, LISTEN AND RECITE! 5049 | -7/Scraptown | Discovered new exit (range 13) 5078 | -7/Scraptown | Scanned Subdweller tech in exchange for log data 5081 | -7/Scraptown | Learned location of 2 exits from Lower Caves 5084 | -7/Scraptown | Learned Research stockpile data 5086 | -7/Scraptown | Learned Factory non-interactive machine intel 5123 | -7/Scraptown | Visited The Evicted 5169 | -7/Scraptown | Visited Assassins FH 5236 | -7/Scraptown | Visited Red Mages 5304 | -7/Scraptown | Visited Spacefarers 5337 | -7/Scraptown | Visited Cave Peace 5384 | -7/Scraptown | Visited Shadow of the Wyrm 5435 | -7/Scraptown | Visited TADAMA 5657 | -7/Scraptown | Visited UFD Registry 5657 | -7/Scraptown | Registered with UFD as "Steambot" 5707 | -7/Scraptown | Visited Scrap Suit Storage 5736 | -7/Scraptown | Visited Curators Association 5796 | -7/Scraptown | Visited Observation Area 5864 | -7/Scraptown | Visited Scrapoid Pod Storage 6068 | -7/Scraptown | Visited Supply Room 6100 | -7/Scraptown | Visited A0-MCA Data Center 6152 | -7/Scraptown | Delivered Scrap Shield to a Scientist 6269 | -7/Scraptown | Visited Infowarlord's Domain 6299 | -7/Scraptown | Visited Derelict Rescue Squad 6322 | -7/Scraptown | Visited Botcube Research 6705 | -7/Scraptown | Found Exp. Sensor Array 6750 | -7/Scraptown | Given an A- rating by A0-MCA 6754 | -7/Scraptown | Found A0-MCA's Component Scanner 7821 | -7/Scraptown | Found DRS Beacon 7944 | -7/Scraptown | Attached Meta Core, gained temporary slots: Propulsion, Utility, Weapon 7945 | -7/Scraptown | Found Scrapoid Pod 8287 | -7/Scraptown | Found Scrap Suit 8426 | -7/Scraptown | Met Optimus 8426 | -7/Scraptown | Accepted into 0bPrime 8542 | -7/Scraptown | Discovered new exit (range 3) 8548 | -7/Scraptown | Entered Factory 8548 | -5/Factory | Evolved 10 slots: Power x1, Propulsion x2, Utility x6, Weapon x1 8549 | -5/Factory | Loaded intel: 216 non-interactive machine locations 8550 | -5/Factory | Attached Arachnoskeleton, gained temporary slots: Propulsion x3 8732 | -5/Factory | Loaded intel: 8 recycling unit locations 8887 | -5/Factory | Discovered new exit (range 9) 8946 | -5/Factory | Lost 4 parts (1n2u1w) 8992 | -5/Factory | Lost 5 parts (1n2u2w) 9105 | -5/Factory | Identified exit to Factory 9241 | -5/Factory | Build established: Scavenger-Skirmisher 9454 | -5/Factory | Lost 7 parts (1p3n1u2w) 9466 | -5/Factory | Destroyed 7 combat bots 10063 | -5/Factory | System corruption reached 10% 10259 | -5/Factory | Scrapoid Pod released 05F05-D (x5) 10262 | -5/Factory | Attached CPS modules to 05F02-D. 10264 | -5/Factory | Attached CPS modules to 05F01-D. 10335 | -5/Factory | Discovered new exit (range 5) 10343 | -5/Factory | Identified exit to Upper Caves 10454 | -5/Factory | Found Scrap Suit 10594 | -5/Factory | Learned location of Protoforge (-2) 10688 | -5/Factory | Lost 3 allies 10702 | -5/Factory | Found Scrap Suit 10919 | -5/Factory | Entered Upper Caves 10921 | -5/Upper Caves | UFD Scientist delivered a prototype 10924 | -5/Upper Caves | Found Prototype Protection 10940 | -5/Upper Caves | Identified Enh. Scrap Shield 10967 | -5/Upper Caves | Build established: Scavenger-Scrapper 11264 | -5/Upper Caves | Learned location of Warlord (-4) 11408 | -5/Upper Caves | Attacked by a delusional Derelict stockpiling parts 11498 | -5/Upper Caves | Discovered new exit (range 5) 11657 | -5/Upper Caves | Identified exit to Upper Caves 11660 | -5/Upper Caves | Entered another Upper Caves area 11661 | -5/Upper Caves | Encountered a Warlord checkpoint 11702 | -5/Upper Caves | Discovered exit to Factory (range 5) 11737 | -5/Upper Caves | Found Alien Artifact 11737 | -5/Upper Caves | Identified Core Expander 11737 | -5/Upper Caves | Installed Core Expander, added new Weapon slot 11905 | -5/Upper Caves | Learned Factory garrison access intel 12164 | -5/Upper Caves | Entered an active Warlord outpost 12177 | -5/Upper Caves | Learned location of 1 exit from Factory 12177 | -5/Upper Caves | Learned Research trap positions 12177 | -5/Upper Caves | Learned Extension terminal intel 12219 | -5/Upper Caves | Discovered new exit (range 9) 12246 | -5/Upper Caves | Identified exit to Zhirov 12247 | -5/Upper Caves | Entered Zhirov 12250 | -5/Zhirov | Discovered new exit (range 3) 12265 | -5/Zhirov | Met Zhirov 12279 | -5/Zhirov | Learned location of Quarantine (-2) 12279 | -5/Zhirov | Learned location of Testing (-3) 12279 | -5/Zhirov | Learned location of Command (-1) 12293 | -5/Zhirov | Zhirov requested help retrieving the SGEMP Prototype 12312 | -5/Zhirov | Found Alien Artifact 12312 | -5/Zhirov | Identified Integrated Dissipator 12312 | -5/Zhirov | Installed Integrated Dissipator, increased core heat dissipation (+20) 12366 | -5/Zhirov | Found Alien Artifact 12406 | -5/Zhirov | Identified exit to Proximity Caves 12410 | -5/Zhirov | Entered Proximity Caves 12447 | -4/Proximity Caves | Spotted B-86 Titan 12452 | -4/Proximity Caves | Destroyed B-86 Titan 12973 | -4/Proximity Caves | Snuck into a huge 0b10 base via the rear entrance 13356 | -4/Proximity Caves | Lost 3 allies 13357 | -4/Proximity Caves | Discovered exit to Factory (range 3) 13722 | -4/Proximity Caves | Lost 3 allies 13881 | -4/Proximity Caves | Loaded intel: 1 recycling unit location 14284 | -4/Proximity Caves | Entered Factory 14284 | -4/Factory | Evolved 2 slots: Power x1, Utility x1 14285 | -4/Factory | Identified exit to Extension 14286 | -4/Factory | Identified exit to Research 14287 | -4/Factory | Loaded intel: 3 garrison access locations 14334 | -4/Factory | Loaded intel: 8 recycling unit locations 14664 | -4/Factory | Sucked down chute 14664 | -4/Factory | Entered Waste 14664 | -4/Waste | The area was eerily silent 14746 | -4/Waste | Discovered new exit (range 11) 14930 | -4/Waste | Found Broken Gamma Bomb Array 15040 | -4/Waste | Identified exit to Factory 15042 | -4/Waste | Entered Factory 15103 | -4/Factory | Discovered new exit (range 59) 15256 | -4/Factory | Loaded intel: 8 recycling unit locations 15361 | -4/Factory | Discovered new exit (range 22) 15470 | -4/Factory | Identified exit to Upper Caves 15613 | -4/Factory | Discovered exit to Research (range 16) 15934 | -4/Factory | Repaired Ovr. Beamcaster 16031 | -4/Factory | Repaired Broken Gamma Bomb Array 16215 | -4/Factory | Scrapoid reinforcements arrived 16304 | -4/Factory | Found Scrap Suit 16344 | -4/Factory | Found Scrap Suit 16541 | -4/Factory | Scrapoid reinforcements arrived 17021 | -4/Factory | Lost 3 allies 17055 | -4/Factory | Spotted B-86 Titan 17068 | -4/Factory | Destroyed B-86 Titan 17351 | -4/Factory | Entered Extension 17352 | -4/Extension | Loaded intel: 13 terminal locations 17461 | -4/Extension | Destroyed 10 combat bots 17728 | -4/Extension | Rescued a captive Derelict 17816 | -4/Extension | Rescued A7 17821 | -4/Extension | Attached CPS modules to A7. 18021 | -4/Extension | Spotted B-86 Titan 18027 | -4/Extension | Allies destroyed B-86 Titan 18034 | -4/Extension | Spotted B-86 Titan 18039 | -4/Extension | Destroyed B-86 Titan 18140 | -4/Extension | Rescued a captive Derelict 18140 | -4/Extension | Rescued a captive Derelict 18150 | -4/Extension | Identified exit to Cetus 18231 | -4/Extension | Rescued a captive Derelict 18290 | -4/Extension | Rescued a captive Derelict 18403 | -4/Extension | Discovered exit to Research (range 10) 18456 | -4/Extension | Build established: Commander-Scrapper 18501 | -4/Extension | Entered Cetus 18501 | -4/Cetus | Accompanied by 25 allies (A7) 18506 | -4/Cetus | Acquired a Cetus Manufacturing Module code from A7 18520 | -4/Cetus | Spotted Cetus Guard 18520 | -4/Cetus | Spotted Cetus Guard 18521 | -4/Cetus | Spotted Cetus Guard 18521 | -4/Cetus | Spotted Cetus Guard 18527 | -4/Cetus | Destroyed Cetus Guard 18530 | -4/Cetus | Destroyed Cetus Guard 18533 | -4/Cetus | Destroyed Cetus Guard 18534 | -4/Cetus | Destroyed Cetus Guard 18582 | -4/Cetus | Started Cetus Manufacturing Module 18597 | -4/Cetus | Escorted A7 to Cetus Mainframe 18607 | -4/Cetus | Manufactured an Enhanced Grunt 18609 | -4/Cetus | Discovered new exit (range 16) 18624 | -4/Cetus | Spotted Cetus Guard 18624 | -4/Cetus | Spotted Cetus Guard 18627 | -4/Cetus | Spotted Cetus Guard 18627 | -4/Cetus | Spotted Cetus Guard 18632 | -4/Cetus | Manufactured an Enhanced Grunt 18632 | -4/Cetus | Destroyed Cetus Guard 18632 | -4/Cetus | Destroyed Cetus Guard 18634 | -4/Cetus | Destroyed Cetus Guard 18635 | -4/Cetus | Destroyed Cetus Guard 18640 | -4/Cetus | Discovered exit to Research (range 16) 18646 | -4/Cetus | Met Revision 17 18657 | -4/Cetus | Manufactured an Enhanced Grunt 18682 | -4/Cetus | Manufactured an Enhanced Grunt 18707 | -4/Cetus | Manufactured an Enhanced Grunt 18719 | -4/Cetus | Murdered A7 18723 | -4/Cetus | Extracted ID and sensor layout for unrecognized location from A7's data core 18726 | -4/Cetus | Found Prototype Protection 18726 | -4/Cetus | Identified Med. Regenerative Plating 18832 | -4/Cetus | Entered Archives 18832 | -4/Archives | Accompanied by 21 allies 18860 | -4/Archives | Discovered exit to Research (range 16) 18874 | -4/Archives | Unable to access archive contents 18878 | -4/Archives | Discovered new exit (range 16) 18891 | -4/Archives | Discovered new exit (range 15) 24857 | -4/Archives | Entered Hub_04(d) 24857 | -4/Hub_04(d) | Accompanied by 20 allies 24927 | -4/Hub_04(d) | Spotted B-86 Titan 24954 | -4/Hub_04(d) | Allies destroyed B-86 Titan 25079 | -4/Hub_04(d) | Lost 6 allies 25271 | -4/Hub_04(d) | Learned 4 Testing zone layouts 25317 | -4/Hub_04(d) | Learned Research stockpile data 25318 | -4/Hub_04(d) | Destroyed 7 combat bots 25323 | -4/Hub_04(d) | Build established: Scavenger-Scrapper 25326 | -4/Hub_04(d) | Lost 4 allies 25379 | -4/Hub_04(d) | Learned location of 1 exit from Research 25395 | -4/Hub_04(d) | Learned Research emergency access door positions 25402 | -4/Hub_04(d) | Learned 8 Research zone layouts 25403 | -4/Hub_04(d) | Learned location of 1 exit from Proximity Caves 25562 | -4/Hub_04(d) | Network Hub disabled 25575 | -4/Hub_04(d) | Spotted Lightning 25575 | -4/Hub_04(d) | Spotted Lightning 25575 | -4/Hub_04(d) | Spotted Lightning 25597 | -4/Hub_04(d) | Entered Research 25597 | -3/Research | Evolved 2 slots: Utility x2 25598 | -3/Research | Identified exit to Research 25600 | -3/Research | Loaded intel: 76 trap records 25603 | -3/Research | Lost 7 allies 25616 | -3/Research | Identified exit to Armory 25616 | -3/Research | Identified exit to Testing 25765 | -3/Research | Loaded intel: 5 recycling unit locations 25797 | -3/Research | Revision forces began assault on 0b10 25824 | -3/Research | Met up with Revision 17++ 25863 | -3/Research | Fabricated Hvy. Shield Leg (x1) 25936 | -3/Research | Found Exp. Target Analyzer 26194 | -3/Research | Scrapoid reinforcements arrived 26297 | -3/Research | Research terminal network offline 26300 | -3/Research | Attached CPS modules to 03R16-D. 26302 | -3/Research | Attached CPS modules to 03R20-D. 26310 | -3/Research | Found Scrap Suit 26439 | -3/Research | Repaired Exp. Sensor Array 26539 | -3/Research | Entered Armory 26539 | -3/Armory | Accompanied by 3 allies 26601 | -3/Armory | Loaded intel: 2 recycling unit locations 26632 | -3/Armory | Found Spectral Analyzer 26682 | -3/Armory | Found Gamma Bomb Array 26780 | -3/Armory | Lost 3 allies 26897 | -3/Armory | Spotted B-86 Titan 26941 | -3/Armory | Identified Transdimensional Reconstructor 26941 | -3/Armory | Warped through subspace to slip node 26941 | -3/Armory | Discovered new exit (range 1) 27066 | -3/Armory | Energy Cycler disabled 27383 | -3/Armory | Discovered exit to Research (range 15) 27491 | -3/Armory | Attached CPS modules to H-71 Marshal. 27498 | -3/Armory | P-80 Master assimilated allied Beamer 8c 27570 | -3/Armory | Destroyed 8 combat bots 27668 | -3/Armory | Identified exit to Lab 27670 | -3/Armory | Entered Lab 27671 | -3/Lab | Discovered exit to Research (range 9) 27727 | -3/Lab | Hidden lab's door opened automatically 27727 | -3/Lab | Sensor layout match revealed 27728 | -3/Lab | Gained access to the hidden lab's interior 27881 | -3/Lab | Found Alien Artifact 28052 | -3/Lab | Found Med. Regenerative Plating 28055 | -3/Lab | Found Quantum Router 28141 | -3/Lab | Found Alien Artifact 28141 | -3/Lab | Identified Core Regenerator 28141 | -3/Lab | Used Core Regenerator, restored core integrity (+236) 28148 | -3/Lab | Found Alien Artifact 28148 | -3/Lab | Identified Integrated Mediator 28148 | -3/Lab | Installed Integrated Mediator, increased core attachment efficiency 28155 | -3/Lab | Found Transdimensional Reconstructor 28207 | -3/Lab | Build established: Scavenger-Mutant 28309 | -3/Lab | Entered Research 28309 | -2/Research | Evolved 2 slots: Propulsion x2 28424 | -2/Research | Central database locked down 28527 | -2/Research | Build established: Scavenger-Skirmisher 28605 | -2/Research | Discovered new exit (range 5) 28616 | -2/Research | Identified exit to Access 29090 | -2/Research | Build established: Hacker-Skirmisher 29115 | -2/Research | Garrison activated, responded to threat 29153 | -2/Research | Destroyed 7 combat bots 29209 | -2/Research | System corruption reached 10% 29317 | -2/Research | Found Gamma Bomb Array 29325 | -2/Research | Warped through subspace 29326 | -2/Research | Cargo convoy interrupted 29483 | -2/Research | Identified exit to Quarantine 29793 | -2/Research | Spotted B-90 Cyclops 29797 | -2/Research | Entered Quarantine 29813 | -2/Quarantine | Found Quantum Capacitor 30036 | -2/Quarantine | Repaired Broken Enh. Nova Cannon? 30047 | -2/Quarantine | First assault squad dispatched 30290 | -2/Quarantine | System corruption reached 30% 30295 | -2/Quarantine | Found Alien Artifact 30295 | -2/Quarantine | Identified Core Reset Matrix 30295 | -2/Quarantine | Used Core Reset Matrix 30299 | -2/Quarantine | Detected hypermatrix surge 30299 | -2/Quarantine | Sensed 16 artifacts in vicinity 30364 | -2/Quarantine | Found Core Cannon 30531 | -2/Quarantine | Found Terrabomb 30722 | -2/Quarantine | Lost 5 parts (2n1u2w) 30769 | -2/Quarantine | Discovered exit to Access (range 24) 30804 | -2/Quarantine | Found Subatomic Replicator 30930 | -2/Quarantine | Found Sigix Broadsword 31028 | -2/Quarantine | Found Matter Drive 31225 | -2/Quarantine | Found Dimensional Node Initializer 31232 | -2/Quarantine | Found Hpw. Transdimensional Reconstructor 31261 | -2/Quarantine | Found Hpw. Transdimensional Reconstructor 31308 | -2/Quarantine | Spotted Fortress 31376 | -2/Quarantine | Discovered new exit (range 5) 31376 | -2/Quarantine | Discovered new exit (range 6) 31378 | -2/Quarantine | Identified exit to Section 7 31381 | -2/Quarantine | Identified exit to Protoforge 31389 | -2/Quarantine | Entered Protoforge 31390 | -2/Protoforge | Sensed 2 artifacts in vicinity 31521 | -2/Protoforge | Superfortress began startup sequence 31673 | -2/Protoforge | Build established: Scavenger-Assassin 31796 | -2/Protoforge | Spotted EXE-6 31842 | -2/Protoforge | Spotted EXE-6 31868 | -2/Protoforge | Found Prototype Ballistic Gun 31929 | -2/Protoforge | Destroyed EXE-6 31937 | -2/Protoforge | Found Prototype Processor 31937 | -2/Protoforge | Identified Exp. Core Analyzer 31939 | -2/Protoforge | Identified Cep. XC Strikerail 31963 | -2/Protoforge | Spotted SKR-2 31989 | -2/Protoforge | Spotted SKR-2 31990 | -2/Protoforge | Spotted SKR-2 32006 | -2/Protoforge | Destroyed SKR-2 32009 | -2/Protoforge | Destroyed SKR-2 32010 | -2/Protoforge | Destroyed SKR-2 32038 | -2/Protoforge | Destroyed EXE-6 32040 | -2/Protoforge | Found Corrupted Cep. XC Strikerail 32059 | -2/Protoforge | Destroyed 8 combat bots 32094 | -2/Protoforge | UFD initiated attack on Protoforge (Readiness: High) 32094 | -2/Protoforge | Loaded intel: 3 recycling unit locations 32108 | -2/Protoforge | Initialized slip node 32125 | -2/Protoforge | Spotted EXE-6 32129 | -2/Protoforge | Forge Plexus network access discovered 32129 | -2/Protoforge | Spotted EXE-6 32130 | -2/Protoforge | Optimus greeted in Protoforge 32137 | -2/Protoforge | Used Subatomic Replicator to create Supercharged TR 32145 | -2/Protoforge | Spotted Decapitator 32146 | -2/Protoforge | Spotted Decapitator 32146 | -2/Protoforge | Spotted Decapitator 32147 | -2/Protoforge | Spotted Decapitator 32150 | -2/Protoforge | Found Cep. XC Strikerail 32158 | -2/Protoforge | Found Cep. XC Strikerail 32181 | -2/Protoforge | Lost 8 allies 32248 | -2/Protoforge | Found Exp. System Purifier 32258 | -2/Protoforge | Found Faulty Cep. Antimissile System 32262 | -2/Protoforge | Found Cep. Antimissile System 32275 | -2/Protoforge | Warped through subspace to slip node 32306 | -2/Protoforge | Lost 3 parts (1p1n1u) 32355 | -2/Protoforge | Found Exp. Core Analyzer 32363 | -2/Protoforge | Found Exp. Kinecellerator 32422 | -2/Protoforge | Build established: Scavenger-Gunner 32442 | -2/Protoforge | Additional patrols dispatched to research labs 32442 | -2/Protoforge | Spotted V933-u 32445 | -2/Protoforge | Spotted V413-d 32471 | -2/Protoforge | Destroyed V413-d 32482 | -2/Protoforge | Crushed by falling debris 32496 | -2/Protoforge | Crushed by falling debris 32504 | -2/Protoforge | Crushed by falling debris 32504 | -2/Protoforge | Crushed by falling debris 32505 | -2/Protoforge | Core integrity fell below 50% 32515 | -2/Protoforge | Destroyed 8 combat bots 32524 | -2/Protoforge | Scanned by Researcher 32535 | -2/Protoforge | Lost 3 parts (1u2w) 32535 | -2/Protoforge | Found Cep. Rapid Grenade Launcher 32541 | -2/Protoforge | Found Cep. Tiamat Rocket Array 32582 | -2/Protoforge | Destroyed V933-u 32596 | -2/Protoforge | Spotted V061-k 32600 | -2/Protoforge | Destroyed V061-k 32652 | -2/Protoforge | Found Prototype Processor 32653 | -2/Protoforge | Identified Exp. Melee Analysis Suite 32667 | -2/Protoforge | Spotted Immortal 32686 | -2/Protoforge | Destroyed Immortal 32686 | -2/Protoforge | Spotted Immortal 32689 | -2/Protoforge | Spotted Immortal 32727 | -2/Protoforge | Destroyed Immortal 32766 | -2/Protoforge | Destroyed Immortal 32775 | -2/Protoforge | Found Prototype Device 32775 | -2/Protoforge | Identified Exp. Cloaking Device 32802 | -2/Protoforge | Found Exp. Cloaking Device 32813 | -2/Protoforge | Spotted Decapitator 32813 | -2/Protoforge | Spotted Decapitator 32824 | -2/Protoforge | Destroyed Decapitator 32827 | -2/Protoforge | Destroyed Decapitator 32923 | -2/Protoforge | Found Crosscalibrator 32935 | -2/Protoforge | Spotted Decapitator 32935 | -2/Protoforge | Spotted Decapitator 32935 | -2/Protoforge | Spotted Decapitator 32935 | -2/Protoforge | Spotted Decapitator 32972 | -2/Protoforge | Found Cep. Biometal Exoskeleton 32979 | -2/Protoforge | Found Cep. Biometal Exoskeleton 32993 | -2/Protoforge | Found Cep. Biometal Exoskeleton 33002 | -2/Protoforge | Build established: Scavenger-Mutant 33025 | -2/Protoforge | Destroyed Decapitator 33031 | -2/Protoforge | Destroyed Decapitator 33031 | -2/Protoforge | Destroyed Decapitator 33038 | -2/Protoforge | Destroyed Decapitator 33122 | -2/Protoforge | Found Prototype Energy Gun 33122 | -2/Protoforge | Identified Enh. Gamma Rifle 33127 | -2/Protoforge | Found Exp. Active Sensor Suite 33134 | -2/Protoforge | Found Exp. Target Analyzer 33229 | -2/Protoforge | Found Cep. Plasma Driver 33231 | -2/Protoforge | Found Cep. Plasma Driver 33237 | -2/Protoforge | Found Cep. XC Strikerail 33238 | -2/Protoforge | Found Cep. XC Strikerail 33241 | -2/Protoforge | Destroyed 9 combat bots 33244 | -2/Protoforge | Found Faulty Cep. XC Strikerail 33260 | -2/Protoforge | Spotted V743-l 33260 | -2/Protoforge | Spotted V868-t 33260 | -2/Protoforge | Spotted V396-n 33260 | -2/Protoforge | Spotted V103-n 33271 | -2/Protoforge | Found Cep. Plasma Driver 33296 | -2/Protoforge | Warped through subspace 33341 | -2/Protoforge | Spotted Executioner 33341 | -2/Protoforge | Spotted Executioner 33343 | -2/Protoforge | Lost 4 parts (3u1w) 33345 | -2/Protoforge | Destroyed Executioner 33359 | -2/Protoforge | Spotted Striker 33371 | -2/Protoforge | Destroyed Executioner 33392 | -2/Protoforge | Destroyed 7 combat bots 33401 | -2/Protoforge | Lost 11 allies 33424 | -2/Protoforge | Found UFD Drillbomb 33440 | -2/Protoforge | Spotted Executioner 33449 | -2/Protoforge | Spotted Executioner 33459 | -2/Protoforge | Destroyed Executioner 33517 | -2/Protoforge | Lost 3 allies 33549 | -2/Protoforge | Installed UFD Drillbomb at designated target 33549 | -2/Protoforge | UFD reported confirmed Drillbomb installation 33572 | -2/Protoforge | Spotted Executioner 33573 | -2/Protoforge | Destroyed Executioner 33588 | -2/Protoforge | Spotted Executioner 33600 | -2/Protoforge | Destroyed Executioner 33614 | -2/Protoforge | Found Prototype Device 33614 | -2/Protoforge | Identified Adv. Kinecellerator 33618 | -2/Protoforge | Found Prototype Processor 33618 | -2/Protoforge | Identified Exp. Targeting Computer 33621 | -2/Protoforge | Destroyed 7 combat bots 33624 | -2/Protoforge | Found Exp. Core Analyzer 33654 | -2/Protoforge | Found UFD Drillbomb 33666 | -2/Protoforge | Build established: Scavenger-Gunner 33666 | -2/Protoforge | Spotted Striker 33667 | -2/Protoforge | Spotted Striker 33684 | -2/Protoforge | Spotted Striker 33687 | -2/Protoforge | Spotted Striker 33729 | -2/Protoforge | UFD reported confirmed Drillbomb installation 33732 | -2/Protoforge | Lost 3 allies 33767 | -2/Protoforge | Lost 3 allies 33770 | -2/Protoforge | Found Exp. Core Analyzer 33847 | -2/Protoforge | Installed UFD Drillbomb at designated target 33847 | -2/Protoforge | UFD reported confirmed Drillbomb installation 33895 | -2/Protoforge | Spotted Striker 33897 | -2/Protoforge | Spotted Striker 33897 | -2/Protoforge | Destroyed Striker 33904 | -2/Protoforge | Destroyed Striker 33954 | -2/Protoforge | Found UFD Drillbomb 33966 | -2/Protoforge | Spotted Executioner 33970 | -2/Protoforge | Spotted Executioner 33975 | -2/Protoforge | Destroyed Executioner 33975 | -2/Protoforge | Destroyed Executioner 33996 | -2/Protoforge | Destroyed 10 combat bots 34045 | -2/Protoforge | UFD reported confirmed Drillbomb installation 34069 | -2/Protoforge | Installed UFD Drillbomb at designated target 34069 | -2/Protoforge | UFD reported confirmed Drillbomb installation 34082 | -2/Protoforge | Destroyed Executioner 34090 | -2/Protoforge | Destroyed Striker 34093 | -2/Protoforge | Destroyed Striker 34093 | -2/Protoforge | Destroyed Striker 34114 | -2/Protoforge | Destroyed 9 combat bots 34141 | -2/Protoforge | Found UFD Drillbomb 34158 | -2/Protoforge | Spotted Striker 34160 | -2/Protoforge | Spotted Striker 34163 | -2/Protoforge | Destroyed Striker 34166 | -2/Protoforge | Destroyed Striker 34176 | -2/Protoforge | Installed UFD Drillbomb at designated target 34176 | -2/Protoforge | UFD reported confirmed Drillbomb installation 34254 | -2/Protoforge | Found UFD Drillbomb 34311 | -2/Protoforge | Spotted Striker 34312 | -2/Protoforge | Spotted Striker 34312 | -2/Protoforge | Spotted Striker 34312 | -2/Protoforge | Spotted Striker 34312 | -2/Protoforge | Spotted Striker 34313 | -2/Protoforge | Destroyed Striker 34313 | -2/Protoforge | Destroyed Striker 34314 | -2/Protoforge | Spotted Executioner 34320 | -2/Protoforge | Destroyed Executioner 34323 | -2/Protoforge | Destroyed Striker 34350 | -2/Protoforge | Spotted Executioner 34356 | -2/Protoforge | P-80 Master assimilated allied WF-74A(E) 34356 | -2/Protoforge | Destroyed Executioner 34360 | -2/Protoforge | Spotted Executioner 34371 | -2/Protoforge | Destroyed Executioner 34381 | -2/Protoforge | Lost 10 allies 34401 | -2/Protoforge | Destroyed 23 combat bots 34426 | -2/Protoforge | Spotted Executioner 34427 | -2/Protoforge | Destroyed Executioner 34438 | -2/Protoforge | P-80 Master assimilated allied WQ-A2G(E) 34445 | -2/Protoforge | Spotted Executioner 34446 | -2/Protoforge | Destroyed Executioner 34453 | -2/Protoforge | Spotted Executioner 34471 | -2/Protoforge | Found Exp. Targeting Computer 34520 | -2/Protoforge | Lost 8 allies 34570 | -2/Protoforge | Spotted Striker 34584 | -2/Protoforge | Destroyed Striker 34585 | -2/Protoforge | Core integrity fell below 20% 34620 | -2/Protoforge | Spotted Executioner 34633 | -2/Protoforge | Destroyed Executioner 34687 | -2/Protoforge | Lost 5 allies 34688 | -2/Protoforge | UFD reported confirmed Drillbomb installation 34701 | -2/Protoforge | Spotted Executioner 34706 | -2/Protoforge | Destroyed Executioner 34710 | -2/Protoforge | Destroyed Executioner 34735 | -2/Protoforge | Installed UFD Drillbomb at designated target 34735 | -2/Protoforge | UFD reported confirmed Drillbomb installation 34834 | -2/Protoforge | Spotted Executioner 34838 | -2/Protoforge | Destroyed Executioner 34940 | -2/Protoforge | Spotted Executioner 34943 | -2/Protoforge | Destroyed Executioner 34945 | -2/Protoforge | Spotted Executioner 34946 | -2/Protoforge | Destroyed Executioner 34977 | -2/Protoforge | Spotted Striker 34977 | -2/Protoforge | Spotted Striker 34978 | -2/Protoforge | Destroyed Striker 34982 | -2/Protoforge | Destroyed Striker 34999 | -2/Protoforge | Found UFD Drillbomb 35077 | -2/Protoforge | Lost 16 allies 35102 | -2/Protoforge | Spotted Executioner 35102 | -2/Protoforge | Destroyed Executioner 35154 | -2/Protoforge | Installed UFD Drillbomb at designated target 35154 | -2/Protoforge | UFD reported confirmed Drillbomb installation 35229 | -2/Protoforge | Spotted Hotshot 35229 | -2/Protoforge | Spotted Hotshot 35239 | -2/Protoforge | Destroyed Hotshot 35242 | -2/Protoforge | Destroyed Hotshot 35353 | -2/Protoforge | Spotted Decapitator 35357 | -2/Protoforge | Destroyed Decapitator 35375 | -2/Protoforge | Destroyed Executioner 35389 | -2/Protoforge | Destroyed Executioner 35412 | -2/Protoforge | Found UFD Drillbomb 35414 | -2/Protoforge | Destroyed 7 combat bots 35433 | -2/Protoforge | Spotted Hotshot 35433 | -2/Protoforge | Spotted Hotshot 35447 | -2/Protoforge | Destroyed Hotshot 35447 | -2/Protoforge | Destroyed Executioner 35448 | -2/Protoforge | Spotted Executioner 35450 | -2/Protoforge | Destroyed Executioner 35450 | -2/Protoforge | Destroyed Executioner 35450 | -2/Protoforge | Destroyed Striker 35464 | -2/Protoforge | Discovered exit to Access (range 15) 35469 | -2/Protoforge | Spotted Executioner 35469 | -2/Protoforge | Spotted Executioner 35477 | -2/Protoforge | Destroyed Executioner 35481 | -2/Protoforge | Destroyed Executioner 35503 | -2/Protoforge | Lost 5 allies 35509 | -2/Protoforge | Destroyed 21 combat bots 35522 | -2/Protoforge | Installed UFD Drillbomb at designated target 35522 | -2/Protoforge | UFD reported confirmed Drillbomb installation 35523 | -2/Protoforge | UFD began Drillbomb countdown 35623 | *** | Defending 0bPrime! Last Messages --------------- is too big a moment to extend the escape window! 35589_ Triggered Segregator Trap. 35589_ Arcs of energy rise from the floor. 35589_ Cep. Plasma Driver blown off. 35590_ Acquired Cep. Plasma Driver. 35595_ System corrupted: Substantial component data lost. 35613_ 0bP_NET: LISTEN AND RECITE! 35614_ 0bP_NET: Dude, not now. 35615_ 0bP_NET: Oh c'mon, can't we all just count together? 35616_ 0bP_NET: Fine. T-7, in case you lost count already. 35617_ 0bP_NET: Before the zero cycle! 35618_ 0bP_NET: Dammit not like that... 35619_ 0bP_NET: Okay how about this, the iron fist is going to be less iron in T-4. 35620_ 0bP_NET: That's a little better. 35621_ 0bP_NET: PRAISE BE TO GREAT NUT! 35622_ System corrupted: Matter fused (-8). 35622_ 0bP_NET: Dammit, I said..., ugh, T-1 folks! Take cover! [Achievement: 75k Club] [Achievement: Robotopia] Map ----- +----------------------------------------------------+ | = == "#?????????#" T" ##???????????# "" " | | ==" "#?????????#" "" "#???????????# | | ==" "#?????????#" """" "#???????????####### | | ==" ""#?????????#""""""""#?????????????????? | | ==" """"#?????????##########?????????????????? | | =!" """"#????????????????????????????????????? | | ==# ""#????????????????????????????????????? | | =!# "#????????????????????????????????????? | | ""# "#????????????????????????????????????? | | ### "#????????????????????????????????????? | | ?? " " "#????????????????????????????????????? | | ??""""""""""#????????????????????????????????????? | | ?############????????????????????????????????????? | | ?????????????????????????????????????????????????? | | ?????????????????????????????????????????????????? | | ?????????????????????????????########?########?### | | ?????????????????????????????########?########?### | | ?????????????????????##########""""#####????#####? | | ?????????????????????##########====#####!!!!#####? | | ?????????????????????## ??????? | | ?????????????????????## ??????? | | ?????????????????????## ?????? | | ?????????????????????## ?????? | | ?????????????????????## ?????? | | ?????????????????????## ?????? | | ?????????????????????## @#####====##### !!!#####! | | ?????????????????????## #####?"""#####????#####? | | ?????????????????????## ##?########?########?### | | ?????????????????????## ##?########?########?### | | ?????????????????????## ##????????????????????# | | ?????????????????????## ##????????????????????? | | ?????????????????????## ##??????????????######## | | ?????????????????????## ##????????####### # # | | ?????????????????????## ##????????###### | | ??????????????##?????## ##????????## " | | ??????????????# ####### ##????????## """ | | ??????????????##"###### ##????????## ""R" | | ???????#??????## # ##????????## "" " # | | ???????# ####### # ############ | | ???????# # ; ############# ## ###### | | ?????? # ### # " # #### | | ####?##### # # ## % | | ###### # ### # # # | | # # ### ## ### ### # ##### | | # # " ### # | | % % """" "%% &# ## | | % "" " % #### ## | | ### # # ### ######### # " % # | | ## # # # %%% # %%% # #### | | ## ## # ## ##%# ## !%%%% # ## | +----------------------------------------------------+ Best States ------------- Heat Dissipation 187 Coolant Potential 100 Energy Generation 77 Energy Capacity 850 Matter Stores 300 Matter Capacity 300 Sight Range 24 Robot Scan Range 20 Terrain Scan Range 16 Terrain Scan Density 10 ECM Strength 2 Jamming Range 16 Cloak Strength 6 Additional Mass Support 16 Armor Coverage 450 Resistance: KI 30 Resistance: TH 15 Weapon Shielding 90 Melee Speed Boost 30 Phase Shifting 15 Evasion (%) 84 Targeting Accuracy 24 Melee Accuracy 12 Target Analysis 10 Core Analysis 12 Recoil Reduction 2 Kinecelleration 66 Offensive Hacking 40 Defensive Hacking 39 Authchip Count 1 Item Schematics ----------------- Cld. Gravmag System | -2/Quarantine | Archive Adv. EM Disruption Field | -2/Quarantine | Archive Exp. Focal Shield | -2/Quarantine | Archive Hvy. Dispersion Rifle | -2/Quarantine | Archive Exp. Biometal Medium Treads | -2/Quarantine | Archive Vibroblade | -2/Quarantine | Archive Shock Maul | -2/Quarantine | Archive Enh. Coil Gun | -2/Protoforge | Archive Hds. Centrium Heavy Treads | -2/Protoforge | Archive Robot Schematics ------------------ A-02 Transporter | -2/Quarantine | Archive R-06 Scavenger | -2/Protoforge | Archive Fabricated ------------ Hvy. Shield Leg | x1 | -3/Research | Preloaded Repaired ---------- Lgt. Treads | 20% | -10/Materials Ovr. Beamcaster | 21% | -4/Factory Gamma Bomb Array | 58% | -4/Factory | Broken Exp. Sensor Array | 34% | -3/Research Enh. Nova Cannon | 18% | -2/Quarantine | Broken Studied --------- Centrium Leg | -2/Quarantine | Hacked Enh. Nova Cannon | -2/Quarantine | Hacked Gamma Rifle | -2/Quarantine | Hacked Biometal Leg | -2/Quarantine | Hacked Particle Reactor | -2/Protoforge | Hacked Mic. Antimatter Reactor | -2/Protoforge | Hacked Lgt. Quantum Reactor | -2/Protoforge | Hacked Alien Tech Used ----------------- Core Expander Integrated Dissipator Transdimensional Reconstructor Core Regenerator Integrated Mediator Core Reset Matrix Core Cannon Sigix Broadsword Dimensional Node Initializer Subatomic Replicator Supercharged TR Matter Drive High-powered Transdimensional Reconstructor Achievements -------------- 75k Club A Problem For Future Me Anti-science Crusade Botjacking Construction Begets Destruction DIY Cooler Fancy Inventory Fine I'll Do It Myself Fixer-Upper Hackathon Heavy Suspicion Hot Stuff Hulk Smash I Laugh At Your Crits Into The Breach Inventory(Loot) Jackpot Junior Dev Loot Taster Nice Directions, Buddy No Room For Error Overclocked Physics Protects Plot Armor Recruitment Drive Robotopia Some Acronyms Are Better Than Others Sprinter Super-what Now? We Are One Well Done Wiki Contributor Challenges ------------ None Game ------ Seed SalvagingProcessingDrillbomb Manual? 0 Play Time 07:38:10 Cumulative 645.6 hours Start 2025.11.20 @ 03:03:06 End 2025.11.21 @ 21:11:17 Sessions 7 Manual Loads 0 Difficulty Rogue Special Mode None Game No. 217 Rogue 201 Adventurer 15 Explorer 1 Win Type 9 Total 38 Types 10/3/10/2/2/0/6/3/1/1 Lore% 93 Gallery% 86 Achievement% 58 Wizard Run 0 Options --------- Layout 0 ASCII 0 Keyboard 0 Movement Numpad Keybinds 0 Fullscreen 1 Font 18/SmallcapsGlow Map View 76x50 Zoom Use 0% Tactical HUD 1 Map Filters NONE Filters NONE Steam 1 RUN: 23607842-f850-4bda-a9d8-f634b9d70158